{"text_format":"1","workbook":"xlsx","n_sheets":3,"sheets":["入力","印刷","工事番号一覧"],"not_rendered":{"charts":0,"images":0,"macros":1,"external_links":0,"defined_names":1,"comments":0,"pivot_tables":0},"unopened":[],"bounds":{"document_bytes":16777216,"sheet_cells":100000,"rows_first":2000,"rows_last":500,"rows_between":2000,"halvings":0,"cell_chars":16384,"cell_head_chars":4096},"cells_cut":0,"cells_raw":0,"read":"whole","date_system":"1900"}

{"sheet":"入力","index":0,"n_rows":48,"n_cols":84,"rows_kept":48,"cut":false,"hidden":false,"merged":[[1,51,3,52],[29,44,29,50],[34,35,34,40],[35,12,35,13],[35,14,35,15],[35,16,35,26],[35,27,35,28],[35,29,35,30],[35,31,35,34],[35,35,35,40],[34,12,34,13],[34,14,34,15],[34,16,34,26],[34,27,34,28],[34,29,34,30],[34,31,34,34],[33,29,33,30],[33,31,33,34],[33,35,33,40],[32,12,32,13],[32,14,32,15],[32,16,32,26],[29,29,29,30],[29,12,29,13],[21,12,21,26],[22,12,22,26],[23,2,23,8],[24,2,24,8],[25,2,25,8],[26,2,26,8],[27,2,27,8],[28,2,28,8],[25,12,25,26],[26,12,26,26],[27,12,27,26],[28,12,28,26],[23,12,23,26],[24,12,24,26],[11,12,11,26],[12,12,12,26],[13,12,13,26],[14,12,14,15],[14,17,14,20],[14,22,14,26],[17,12,17,26],[17,1,17,8],[19,1,19,8],[15,12,15,26],[20,2,20,8],[21,2,21,8],[22,2,22,8],[7,1,7,8],[9,1,9,8],[10,2,10,8],[11,2,11,8],[12,2,12,8],[13,2,13,8],[14,2,14,8],[15,2,15,8],[47,12,47,26],[48,12,48,26],[47,2,48,8],[47,10,48,10],[42,12,42,19],[43,12,43,19],[42,20,42,26],[43,20,43,26],[41,1,41,8],[44,12,44,26],[45,12,45,26],[46,12,46,26],[47,1,48,1],[42,2,42,8],[43,2,43,8],[44,2,44,8],[45,2,45,8],[46,2,46,8],[29,1,36,8],[29,14,29,15],[29,16,29,26],[20,12,20,26],[2,25,2,27],[36,31,36,34],[36,35,36,40],[7,12,7,26],[10,12,10,26],[30,35,30,40],[31,12,31,13],[31,14,31,15],[31,16,31,26],[31,27,31,28],[31,29,31,30],[31,31,31,34],[31,35,31,40],[29,35,29,40],[29,31,29,34],[30,12,30,13],[30,14,30,15],[30,16,30,26],[30,27,30,28],[30,29,30,30],[33,12,33,13],[33,14,33,15],[28,58,28,59],[28,60,28,61],[28,62,28,63],[36,41,36,42],[29,10,36,10],[29,41,29,42],[30,41,30,42],[31,41,31,42],[32,41,32,42],[33,41,33,42],[34,41,34,42],[35,41,35,42],[36,29,36,30],[36,12,36,13],[36,14,36,15],[36,16,36,26],[36,27,36,28],[32,27,32,28],[32,29,32,30],[32,31,32,34],[33,16,33,26],[33,27,33,28],[29,27,29,28],[30,44,30,50],[33,44,33,50],[34,44,34,45],[35,44,35,45],[36,44,36,45],[34,46,34,50],[35,46,35,50],[36,46,36,50],[31,44,31,50],[30,31,30,34],[32,35,32,40]]}
[]
[null,null,null,null,null,null,null,null,null,null,null,null,null,null,null,null,null,null,null,null,null,null,null,null,null,null,null,null,null,null,null,null,null,null,null,null,null,null,null,null,null,null,null,null,null,null,null,null,null,null,null,"消費税率",null,0.1]
[null,null,null,null,null,null,null,null,null,null,null,null,null,null,null,null,null,null,null,null,null,null,null,null,null,null,null,null," の部分に漏れなく入力して下さい ",null,null,null,null,null,null,null,null,null,null,null,null,null,null,null,null,null,null,null,null,null,null,null,null,0.08]
[null,null,null,null,null,null,null,null,null,null,null,null,null,null,null,null,null,null,null,null,null,null,null,null,null,null,null,null,null,null,null,null,null,null,null,null,null,null,null,null,null,null,null,null,null,null,null,null,null,null,null,null,null,0]
[]
[]
[]
["①","ご請求日",null,null,null,null,null,null,null,null,"：",null,null,null,null,null,null,null,null,null,null,null,null,null,null,null,null,null,"👈",null,"* 例）　2023年6月30日 ⇒ 【23/6/30】と入力"]
[]
["②","ご請求者"]
[null,null,"お取引コード",null,null,null,null,null,null,null,"：",null,null,null,null,null,null,null,null,null,null,null,null,null,null,null,null,null,"👈",null,"* 不明の場合、宮内建設宛にお問合せ下さい　（045-934-2691）",null,null,null,null,null,null,null,null,null,null,null,null,null,null,null,null,null,null,null,null,null,null,null,null,null,null,null,null,null,null,null,null,null,null,{"$f":"MID($M11,LEN($M11)-9+1,1)","v":{"$error":"#VALUE!"}},{"$f":"MID($M11,LEN($M11)-8+1,1)","v":{"$error":"#VALUE!"}},{"$f":"MID($M11,LEN($M11)-7+1,1)","v":{"$error":"#VALUE!"}},{"$f":"MID($M11,LEN($M11)-6+1,1)","v":{"$error":"#VALUE!"}},{"$f":"MID($M11,LEN($M11)-5+1,1)","v":{"$error":"#VALUE!"}},{"$f":"MID($M11,LEN($M11)-4+1,1)","v":{"$error":"#VALUE!"}},{"$f":"MID($M11,LEN($M11)-3+1,1)","v":{"$error":"#VALUE!"}},{"$f":"MID($M11,LEN($M11)-2+1,1)","v":{"$error":"#VALUE!"}},{"$f":"MID($M11,LEN($M11)-1+1,1)","v":{"$error":"#VALUE!"}},null,{"$f":"IF(ISERROR(BN11),\"\",BN11)","v":""},{"$f":"IF(ISERROR(BO11),\"\",BO11)","v":""},{"$f":"IF(ISERROR(BP11),\"\",BP11)","v":""},{"$f":"IF(ISERROR(BQ11),\"\",BQ11)","v":""},{"$f":"IF(ISERROR(BR11),\"\",BR11)","v":""},{"$f":"IF(ISERROR(BS11),\"\",BS11)","v":""},{"$f":"IF(ISERROR(BT11),\"\",BT11)","v":""},{"$f":"IF(ISERROR(BU11),\"\",BU11)","v":""},{"$f":"IF(ISERROR(BV11),\"\",BV11)","v":""}]
[null,null,"ご住所",null,null,null,null,null,null,null,"："]
[null,null,"御社名",null,null,null,null,null,null,null,"："]
[null,null,"役職 ・ 代表者名",null,null,null,null,null,null,null,"："]
[null,null,"電話番号",null,null,null,null,null,null,null,"：",null,null,null,null,null,"-",null,null,null,null,"-"]
[null,null,"登録番号",null,null,null,null,null,null,null,"：",null,null,null,null,null,null,null,null,null,null,null,null,null,null,null,null,null,"👈",null,"* インボイス制度の登録番号を入力して下さい"]
[]
["③","請求先",null,null,null,null,null,null,null,null,"：",null,"宮内建設　株式会社",null,null,null,null,null,null,null,null,null,null,null,null,null,null,null,"👈",null,"* 現場がJVの場合、共同企業体名に上書きして下さい"]
[]
["➃","ご請求内容"]
[null,null,"工事番号",null,null,null,null,null,null,null,"：",null,null,null,null,null,null,null,null,null,null,null,null,null,null,null,null,null,"👈",null,"* 不明の場合、宮内建設宛にお問合せ下さい　（045-934-2691）",null,null,null,null,null,null,null,null,null,null,null,null,null,null,null,null,null,null,null,null,null,null,null,null,null,null,null,null,null,null,null,null,null,null,{"$f":"MID($M21,LEN($M21)-9+1,1)","v":{"$error":"#VALUE!"}},{"$f":"MID($M21,LEN($M21)-8+1,1)","v":{"$error":"#VALUE!"}},{"$f":"MID($M21,LEN($M21)-7+1,1)","v":{"$error":"#VALUE!"}},{"$f":"MID($M21,LEN($M21)-6+1,1)","v":{"$error":"#VALUE!"}},{"$f":"MID($M21,LEN($M21)-5+1,1)","v":{"$error":"#VALUE!"}},{"$f":"MID($M21,LEN($M21)-4+1,1)","v":{"$error":"#VALUE!"}},{"$f":"MID($M21,LEN($M21)-3+1,1)","v":{"$error":"#VALUE!"}},{"$f":"MID($M21,LEN($M21)-2+1,1)","v":{"$error":"#VALUE!"}},{"$f":"MID($M21,LEN($M21)-1+1,1)","v":{"$error":"#VALUE!"}},null,{"$f":"IF(ISERROR(BN21),\"\",BN21)","v":""},{"$f":"IF(ISERROR(BO21),\"\",BO21)","v":""},{"$f":"IF(ISERROR(BP21),\"\",BP21)","v":""},{"$f":"IF(ISERROR(BQ21),\"\",BQ21)","v":""},{"$f":"IF(ISERROR(BR21),\"\",BR21)","v":""},{"$f":"IF(ISERROR(BS21),\"\",BS21)","v":""},{"$f":"IF(ISERROR(BT21),\"\",BT21)","v":""},{"$f":"IF(ISERROR(BU21),\"\",BU21)","v":""},{"$f":"IF(ISERROR(BV21),\"\",BV21)","v":""}]
[null,null,"工事名",null,null,null,null,null,null,null,"：",null,null,null,null,null,null,null,null,null,null,null,null,null,null,null,null,null,"👈",null,"* 工事略称を入力して下さい　「現場ごとに集計して下さい」"]
[null,null,"契約金額 (税抜)",null,null,null,null,null,null,null,"：",null,null,null,null,null,null,null,null,null,null,null,null,null,null,null,null,null,"👈",null,"* 請書・出来高調書がある場合、契約金額(税抜)を入力して下さい",null,null,null,null,null,null,null,null,null,null,null,null,null,null,null,null,null,null,null,null,null,null,null,null,null,null,null,null,null,null,null,null,null,null,{"$f":"MID($M23,LEN($M23)-9+1,1)","v":{"$error":"#VALUE!"}},{"$f":"MID($M23,LEN($M23)-8+1,1)","v":{"$error":"#VALUE!"}},{"$f":"MID($M23,LEN($M23)-7+1,1)","v":{"$error":"#VALUE!"}},{"$f":"MID($M23,LEN($M23)-6+1,1)","v":{"$error":"#VALUE!"}},{"$f":"MID($M23,LEN($M23)-5+1,1)","v":{"$error":"#VALUE!"}},{"$f":"MID($M23,LEN($M23)-4+1,1)","v":{"$error":"#VALUE!"}},{"$f":"MID($M23,LEN($M23)-3+1,1)","v":{"$error":"#VALUE!"}},{"$f":"MID($M23,LEN($M23)-2+1,1)","v":{"$error":"#VALUE!"}},{"$f":"MID($M23,LEN($M23)-1+1,1)","v":{"$error":"#VALUE!"}},null,{"$f":"IF(ISERROR(BN23),\"\",BN23)","v":""},{"$f":"IF(ISERROR(BO23),\"\",BO23)","v":""},"","","","","","",""]
[null,null,"前月迄請求額 (税抜)",null,null,null,null,null,null,null,"：",null,null,null,null,null,null,null,null,null,null,null,null,null,null,null,null,null,"👈",null,"* 請書・出来高調書に対する前月までの請求済金額(税抜)を入力して下さい",null,null,null,null,null,null,null,null,null,null,null,null,null,null,null,null,null,null,null,null,null,null,null,null,null,null,null,null,null,null,null,null,null,null,{"$f":"MID($M24,LEN($M24)-9+1,1)","v":{"$error":"#VALUE!"}},{"$f":"MID($M24,LEN($M24)-8+1,1)","v":{"$error":"#VALUE!"}},{"$f":"MID($M24,LEN($M24)-7+1,1)","v":{"$error":"#VALUE!"}},{"$f":"MID($M24,LEN($M24)-6+1,1)","v":{"$error":"#VALUE!"}},{"$f":"MID($M24,LEN($M24)-5+1,1)","v":{"$error":"#VALUE!"}},{"$f":"MID($M24,LEN($M24)-4+1,1)","v":{"$error":"#VALUE!"}},{"$f":"MID($M24,LEN($M24)-3+1,1)","v":{"$error":"#VALUE!"}},{"$f":"MID($M24,LEN($M24)-2+1,1)","v":{"$error":"#VALUE!"}},{"$f":"MID($M24,LEN($M24)-1+1,1)","v":{"$error":"#VALUE!"}},null,{"$f":"IF(ISERROR(BN24),\"\",BN24)","v":""},"","","","","","","",""]
[null,null,"今回出来高 (税抜)",null,null,null,null,null,null,null,"：",null,{"$f":"IF(AJ37=0,\"\",AJ37)","v":""},null,null,null,null,null,null,null,null,null,null,null,null,null,null,null,"👈",null,"* 内訳の税抜金額合計が表示されます",null,null,null,null,null,null,null,null,null,null,null,null,null,null,null,null,null,null,null,null,null,null,null,null,null,null,null,null,null,null,null,null,null,null,{"$f":"MID($M25,LEN($M25)-9+1,1)","v":{"$error":"#VALUE!"}},{"$f":"MID($M25,LEN($M25)-8+1,1)","v":{"$error":"#VALUE!"}},{"$f":"MID($M25,LEN($M25)-7+1,1)","v":{"$error":"#VALUE!"}},{"$f":"MID($M25,LEN($M25)-6+1,1)","v":{"$error":"#VALUE!"}},{"$f":"MID($M25,LEN($M25)-5+1,1)","v":{"$error":"#VALUE!"}},{"$f":"MID($M25,LEN($M25)-4+1,1)","v":{"$error":"#VALUE!"}},{"$f":"MID($M25,LEN($M25)-3+1,1)","v":{"$error":"#VALUE!"}},{"$f":"MID($M25,LEN($M25)-2+1,1)","v":{"$error":"#VALUE!"}},{"$f":"MID($M25,LEN($M25)-1+1,1)","v":{"$error":"#VALUE!"}},null,{"$f":"IF(ISERROR(BN25),\"\",BN25)","v":""},{"$f":"IF(ISERROR(BO25),\"\",BO25)","v":""},{"$f":"IF(ISERROR(BP25),\"\",BP25)","v":""},{"$f":"IF(ISERROR(BQ25),\"\",BQ25)","v":""},{"$f":"IF(ISERROR(BR25),\"\",BR25)","v":""},{"$f":"IF(ISERROR(BS25),\"\",BS25)","v":""},{"$f":"IF(ISERROR(BT25),\"\",BT25)","v":""},{"$f":"IF(ISERROR(BU25),\"\",BU25)","v":""},{"$f":"IF(ISERROR(BV25),\"\",BV25)","v":""}]
[null,null,"累計出来高 (税抜)",null,null,null,null,null,null,null,"：",null,{"$f":"IF(AND(M23=0,M24=0),\"\",SUM(M24:AA25))","v":""},null,null,null,null,null,null,null,null,null,null,null,null,null,null,null,"👈",null,"* 請書・出来高調書がある場合、前月迄請求額と今回出来高の合計が表示されます",null,null,null,null,null,null,null,null,null,null,null,null,null,null,null,null,null,null,null,null,null,null,null,null,null,null,null,null,null,null,null,null,null,null,{"$f":"MID($M26,LEN($M26)-9+1,1)","v":{"$error":"#VALUE!"}},{"$f":"MID($M26,LEN($M26)-8+1,1)","v":{"$error":"#VALUE!"}},{"$f":"MID($M26,LEN($M26)-7+1,1)","v":{"$error":"#VALUE!"}},{"$f":"MID($M26,LEN($M26)-6+1,1)","v":{"$error":"#VALUE!"}},{"$f":"MID($M26,LEN($M26)-5+1,1)","v":{"$error":"#VALUE!"}},{"$f":"MID($M26,LEN($M26)-4+1,1)","v":{"$error":"#VALUE!"}},{"$f":"MID($M26,LEN($M26)-3+1,1)","v":{"$error":"#VALUE!"}},{"$f":"MID($M26,LEN($M26)-2+1,1)","v":{"$error":"#VALUE!"}},{"$f":"MID($M26,LEN($M26)-1+1,1)","v":{"$error":"#VALUE!"}},null,{"$f":"IF(ISERROR(BN26),\"\",BN26)","v":""},{"$f":"IF(ISERROR(BO26),\"\",BO26)","v":""},{"$f":"IF(ISERROR(BP26),\"\",BP26)","v":""},{"$f":"IF(ISERROR(BQ26),\"\",BQ26)","v":""},{"$f":"IF(ISERROR(BR26),\"\",BR26)","v":""},{"$f":"IF(ISERROR(BS26),\"\",BS26)","v":""},{"$f":"IF(ISERROR(BT26),\"\",BT26)","v":""},{"$f":"IF(ISERROR(BU26),\"\",BU26)","v":""},{"$f":"IF(ISERROR(BV26),\"\",BV26)","v":""}]
[null,null,"残高金額 (税抜)",null,null,null,null,null,null,null,"：",null,{"$f":"IF(M23=0,\"\",M23-M26)","v":""},null,null,null,null,null,null,null,null,null,null,null,null,null,null,null,"👈",null,"* 契約金額の残高が表示されます",null,null,null,null,null,null,null,null,null,null,null,null,null,null,null,null,null,null,null,null,null,null,null,null,null,null,null,{"$f":"IF(AS32=\"四捨五入\",1,IF(AS32=\"切り捨て\",2,IF(AS32=\"切り上げ\",3,0)))","v":0},null,null,null,null,null,null,{"$error":"#VALUE!"},{"$error":"#VALUE!"},{"$error":"#VALUE!"},{"$error":"#VALUE!"},{"$error":"#VALUE!"},{"$error":"#VALUE!"},{"$error":"#VALUE!"},{"$error":"#VALUE!"},{"$error":"#VALUE!"},null,"","","","","","","","",""]
[null,null,"消費税",null,null,null,null,null,null,null,"：",null,{"$f":"IF(AJ37=0,\"\",AU37)","v":""},null,null,null,null,null,null,null,null,null,null,null,null,null,null,null,"👈",null,"* 内訳欄右の消費税額合計が表示されます",null,null,null,null,null,null,null,null,null,null,null,null,null,null,null,null,null,null,null,null,null,null,null,null,null,null,null,null,null,null,null,null,null,null,{"$error":"#VALUE!"},{"$error":"#VALUE!"},{"$error":"#VALUE!"},{"$error":"#VALUE!"},{"$error":"#VALUE!"},{"$error":"#VALUE!"},{"$error":"#VALUE!"},{"$error":"#VALUE!"},{"$error":"#VALUE!"},null,"","","","","","","","",""]
[null,null,"今回請求額 (税込)",null,null,null,null,null,null,null,"：",null,{"$f":"IF(M25=\"\",\"\",M25+M28)","v":""},null,null,null,null,null,null,null,null,null,null,null,null,null,null,null,"👈",null,"* 今回の税込ご請求額が表示されます",null,null,null,null,null,null,null,null,null,null,null,null,null,null,null,null,null,null,null,null,null,null,null,null,null,null,null,{"$f":"BB2","v":0.1},null,{"$f":"BB3","v":0.08},null,{"$f":"BB4","v":0},null,null,{"$error":"#VALUE!"},{"$error":"#VALUE!"},{"$error":"#VALUE!"},{"$error":"#VALUE!"},{"$error":"#VALUE!"},{"$error":"#VALUE!"},{"$error":"#VALUE!"},{"$error":"#VALUE!"},{"$error":"#VALUE!"},null,"","","","","","","","",""]
[null,"内　　訳\n\n注 : *1\n\n必ずお読み下さい",null,null,null,null,null,null,null,null,"：",null,"月",null,"日",null,"名称・摘要　*2",null,null,null,null,null,null,null,null,null,null,"数量",null,"単位",null,"税抜単価",null,null,null,"税抜金額　*3",null,null,null,null,null,"税率",null,null,"消費税端数 処理方法",null,null,null,null,null,null,null,null,null,null,null,null,null,"金","消","金","消","金","消"]
[null,null,null,null,null,null,null,null,null,null,null,null,null,null,null,null,null,null,null,null,null,null,null,null,null,null,null,null,null,null,null,null,null,null,null,null,null,null,null,null,null,null,null,null,"* 入力必須",null,null,null,null,null,null,null,null,null,null,null,null,null,{"$f":"IF(AP31=$BB$2,AJ31,0)","v":0},null,{"$f":"IF(AP31=$BB$3,AJ31,0)","v":0},null,{"$f":"IF(AP31=$BB$4,AJ31,0)","v":0},null,null,{"$f":"MID($AJ31,LEN($AJ31)-9+1,1)","v":{"$error":"#VALUE!"}},{"$f":"MID($AJ31,LEN($AJ31)-8+1,1)","v":{"$error":"#VALUE!"}},{"$f":"MID($AJ31,LEN($AJ31)-7+1,1)","v":{"$error":"#VALUE!"}},{"$f":"MID($AJ31,LEN($AJ31)-6+1,1)","v":{"$error":"#VALUE!"}},{"$f":"MID($AJ31,LEN($AJ31)-5+1,1)","v":{"$error":"#VALUE!"}},{"$f":"MID($AJ31,LEN($AJ31)-4+1,1)","v":{"$error":"#VALUE!"}},{"$f":"MID($AJ31,LEN($AJ31)-3+1,1)","v":{"$error":"#VALUE!"}},{"$f":"MID($AJ31,LEN($AJ31)-2+1,1)","v":{"$error":"#VALUE!"}},{"$f":"MID($AJ31,LEN($AJ31)-1+1,1)","v":{"$error":"#VALUE!"}},null,{"$f":"IF(ISERROR(BN31),\"\",BN31)","v":""},{"$f":"IF(ISERROR(BO31),\"\",BO31)","v":""},{"$f":"IF(ISERROR(BP31),\"\",BP31)","v":""},{"$f":"IF(ISERROR(BQ31),\"\",BQ31)","v":""},{"$f":"IF(ISERROR(BR31),\"\",BR31)","v":""},{"$f":"IF(ISERROR(BS31),\"\",BS31)","v":""},{"$f":"IF(ISERROR(BT31),\"\",BT31)","v":""},{"$f":"IF(ISERROR(BU31),\"\",BU31)","v":""},{"$f":"IF(ISERROR(BV31),\"\",BV31)","v":""}]
[null,null,null,null,null,null,null,null,null,null,null,null,null,null,null,null,null,null,null,null,null,null,null,null,null,null,null,null,null,null,null,null,null,null,null,null,null,null,null,null,null,null,null,null,null,null,null,null,null,null,null,null,null,null,null,null,null,null,0,null,0,null,{"$f":"IF(AP32=$BB$4,AJ32,0)","v":0},null,null,{"$f":"MID($AJ32,LEN($AJ32)-9+1,1)","v":{"$error":"#VALUE!"}},{"$f":"MID($AJ32,LEN($AJ32)-8+1,1)","v":{"$error":"#VALUE!"}},{"$f":"MID($AJ32,LEN($AJ32)-7+1,1)","v":{"$error":"#VALUE!"}},{"$f":"MID($AJ32,LEN($AJ32)-6+1,1)","v":{"$error":"#VALUE!"}},{"$f":"MID($AJ32,LEN($AJ32)-5+1,1)","v":{"$error":"#VALUE!"}},{"$f":"MID($AJ32,LEN($AJ32)-4+1,1)","v":{"$error":"#VALUE!"}},{"$f":"MID($AJ32,LEN($AJ32)-3+1,1)","v":{"$error":"#VALUE!"}},{"$f":"MID($AJ32,LEN($AJ32)-2+1,1)","v":{"$error":"#VALUE!"}},{"$f":"MID($AJ32,LEN($AJ32)-1+1,1)","v":{"$error":"#VALUE!"}},null,"","","","","","","","",""]
[null,null,null,null,null,null,null,null,null,null,null,null,null,null,null,null,null,null,null,null,null,null,null,null,null,null,null,null,null,null,null,null,null,null,null,null,null,null,null,null,null,null,null,null,null,null,null,null,null,null,null,null,null,null,null,null,null,null,0,null,0,null,0,null,null,{"$error":"#VALUE!"},{"$error":"#VALUE!"},{"$error":"#VALUE!"},{"$error":"#VALUE!"},{"$error":"#VALUE!"},{"$error":"#VALUE!"},{"$error":"#VALUE!"},{"$error":"#VALUE!"},{"$error":"#VALUE!"},null,"","","","","","","","",""]
[null,null,null,null,null,null,null,null,null,null,null,null,null,null,null,null,null,null,null,null,null,null,null,null,null,null,null,null,null,null,null,null,null,null,null,null,null,null,null,null,null,null,null,null,"消費税額",null,null,null,null,null,null,null,null,null,null,null,null,null,0,{"$f":"IF(BG27=1,ROUND(BG37*BB2,0),0)","v":0},0,{"$f":"IF(BG27=1,ROUND(BI37*BB3,0),0)","v":0},0,null,null,{"$error":"#VALUE!"},{"$error":"#VALUE!"},{"$error":"#VALUE!"},{"$error":"#VALUE!"},{"$error":"#VALUE!"},{"$error":"#VALUE!"},{"$error":"#VALUE!"},{"$error":"#VALUE!"},{"$error":"#VALUE!"},null,"","","","","","","","",""]
[null,null,null,null,null,null,null,null,null,null,null,null,null,null,null,null,null,null,null,null,null,null,null,null,null,null,null,null,null,null,null,null,null,null,null,null,null,null,null,null,null,null,null,null,{"$f":"BB2","v":0.1},null,{"$f":"BH37","v":0},null,null,null,null,null,null,null,null,null,null,null,0,{"$f":"IF(BG27=2,ROUNDDOWN(BG37*BB2,0),0)","v":0},0,{"$f":"IF(BG27=2,ROUNDDOWN(BI37*BB3,0),0)","v":0},0,null,null,{"$error":"#VALUE!"},{"$error":"#VALUE!"},{"$error":"#VALUE!"},{"$error":"#VALUE!"},{"$error":"#VALUE!"},{"$error":"#VALUE!"},{"$error":"#VALUE!"},{"$error":"#VALUE!"},{"$error":"#VALUE!"},null,"","","","","","","","",""]
[null,null,null,null,null,null,null,null,null,null,null,null,null,null,null,null,null,null,null,null,null,null,null,null,null,null,null,null,null,null,null,null,null,null,null,null,null,null,null,null,null,null,null,null,{"$f":"BB3","v":0.08},null,{"$f":"BJ37","v":0},null,null,null,null,null,null,null,null,null,null,null,0,{"$f":"IF(BG27=3,ROUNDUP(BG37*BB2,0),0)","v":0},0,{"$f":"IF(BG27=3,ROUNDUP(BI37*BB3,0),0)","v":0},{"$f":"IF(AP36=$BB$4,AJ36,0)","v":0},null,null,{"$error":"#VALUE!"},{"$error":"#VALUE!"},{"$error":"#VALUE!"},{"$error":"#VALUE!"},{"$error":"#VALUE!"},{"$error":"#VALUE!"},{"$error":"#VALUE!"},{"$error":"#VALUE!"},{"$error":"#VALUE!"},null,"","","","","","","","",""]
[null,null,null,null,null,null,null,null,null,null,null,null,null,null,null,null,"計",null,null,null,null,null,null,null,null,null,null,null,null,null,null,null,null,null,null,{"$f":"SUM(AJ31:AO36)","v":0},null,null,null,null,null,null,null,null,"合計",null,{"$f":"SUM(AU35:AY36)","v":0},null,null,null,null,null,null,null,null,null,null,null,{"$f":"SUM(BG31:BG36)","v":0},{"$f":"SUM(BH31:BH36)","v":0},0,0,{"$f":"SUM(BK31:BK36)","v":0},0,null,{"$error":"#VALUE!"},{"$error":"#VALUE!"},{"$error":"#VALUE!"},{"$error":"#VALUE!"},{"$error":"#VALUE!"},{"$error":"#VALUE!"},{"$error":"#VALUE!"},{"$error":"#VALUE!"},"0",null,{"$f":"IF(ISERROR(BN37),\"\",BN37)","v":""},{"$f":"IF(ISERROR(BO37),\"\",BO37)","v":""},{"$f":"IF(ISERROR(BP37),\"\",BP37)","v":""},{"$f":"IF(ISERROR(BQ37),\"\",BQ37)","v":""},{"$f":"IF(ISERROR(BR37),\"\",BR37)","v":""},{"$f":"IF(ISERROR(BS37),\"\",BS37)","v":""},{"$f":"IF(ISERROR(BT37),\"\",BT37)","v":""},{"$f":"IF(ISERROR(BU37),\"\",BU37)","v":""},{"$f":"IF(ISERROR(BV37),\"\",BV37)","v":"0"}]
[null,null,null,null,null,null,null,null,null,null,null,null,null,"*1 ： 消費税率別に入力して下さい　　全項目漏れなく入力して下さい　【入力漏れがあると正常に請求書に反映されません】"]
[null,null,null,null,null,null,null,null,null,null,null,null,null,"*2 ： 内訳欄に「別紙内訳書」・「出来高調書」のとおりとする場合、各書面を2部（コピー可）添付して下さい"]
[null,null,null,null,null,null,null,null,null,null,null,null,null,"*3 ： 消費税抜きの金額を入力して下さい　【消費税は自動計算のため入力不要です】"]
[]
["⑤","お振込先"]
[null,null,"銀行名",null,null,null,null,null,null,null,"："]
[null,null,"本支店名",null,null,null,null,null,null,null,"：",null,null,null,null,null,null,null,null,null,null,null,null,null,null,null,null,null,null,null,"：","カーソルでセルを選択して▼をクリック",null,null,null,null,null,null,null,null,null,null,null,null,null,null,null,null,null,null,null,null,null,null,null,null,null,null,null,null,null,null,null,null,null,"銀行",null,null,null,"本店",null,null,null,"当座",null,null,"四捨五入"]
[null,null,"種目",null,null,null,null,null,null,null,"：",null,null,null,null,null,null,null,null,null,null,null,null,null,null,null,null,null,null,null,null,"リストから項目を選択して下さい",null,null,null,null,null,null,null,null,null,null,null,null,null,null,null,null,null,null,null,null,null,null,null,null,null,null,null,null,null,null,null,null,null,"信用金庫",null,null,null,"支店",null,null,null,"普通",null,null,"切り捨て"]
[null,null,"口座番号",null,null,null,null,null,null,null,"：",null,null,null,null,null,null,null,null,null,null,null,null,null,null,null,null,null,null,null,null,null,null,null,null,null,null,null,null,null,null,null,null,null,null,null,null,null,null,null,null,null,null,null,null,null,null,null,null,null,null,null,null,null,null,"信用組合",null,null,null,"出張所",null,null,null,null,null,null,"切り上げ"]
[null,null,"口座名義人 カナ",null,null,null,null,null,null,null,"：",null,null,null,null,null,null,null,null,null,null,null,null,null,null,null,null,null,null,null,null,null,null,null,null,null,null,null,null,null,null,null,null,null,null,null,null,null,null,null,null,null,null,null,null,null,null,null,null,null,null,null,null,null,null,"農協"]
[null,null,"口座名義人 漢字",null,null,null,null,null,null,null,"："]

{"sheet":"印刷","index":1,"n_rows":82,"n_cols":229,"rows_kept":82,"cut":false,"hidden":false,"merged":[[62,169,62,183],[79,157,81,199],[16,91,16,138],[17,91,17,138],[18,91,18,138],[19,91,19,138],[20,91,20,138],[21,91,21,138],[17,140,17,149],[18,140,18,149],[19,140,19,149],[20,140,20,149],[21,140,21,149],[78,79,78,114],[66,184,66,192],[66,193,66,197],[66,198,66,202],[63,193,63,197],[58,198,58,202],[51,173,53,184],[51,185,53,196],[51,197,53,208],[20,193,20,197],[20,198,20,202],[20,188,20,192],[81,208,81,232],[1,1,1,25],[42,1,42,25],[67,228,67,232],[79,7,81,20],[78,117,78,152],[78,158,78,198],[66,208,66,212],[66,213,66,217],[66,218,66,222],[67,193,67,197],[67,198,67,202],[67,203,67,207],[78,7,78,20],[78,23,78,70],[67,208,67,212],[67,213,67,217],[67,218,67,222],[67,223,67,227],[65,223,65,227],[15,140,15,149],[15,90,15,139],[16,140,16,149],[65,228,65,232],[66,203,66,207],[65,193,65,197],[65,198,65,202],[65,203,65,207],[65,208,65,212],[65,213,65,217],[65,218,65,222],[66,223,66,227],[66,228,66,232],[64,228,64,232],[76,23,77,33],[76,35,77,69],[67,151,67,182],[67,184,67,192],[67,67,67,71],[68,1,69,1],[68,2,69,21],[68,22,69,22],[67,47,67,51],[67,52,67,56],[69,57,69,61],[69,62,69,66],[69,67,69,71],[66,1,67,1],[66,151,66,182],[68,151,69,181],[69,27,69,31],[69,32,69,36],[69,37,69,41],[69,42,69,46],[69,47,69,51],[69,52,69,56],[72,78,76,83],[64,193,64,197],[64,198,64,202],[64,203,64,207],[64,208,64,212],[64,213,64,217],[64,218,64,222],[64,223,64,227],[63,198,63,202],[63,203,63,207],[63,208,63,212],[63,213,63,217],[63,218,63,222],[63,223,63,227],[65,57,65,61],[65,62,65,66],[65,67,65,71],[63,188,63,192],[63,78,63,149],[62,91,62,139],[62,140,62,149],[66,2,67,21],[66,22,67,22],[67,27,67,31],[67,32,67,36],[67,37,67,41],[67,42,67,46],[67,57,67,61],[67,62,67,66],[66,79,69,91],[66,94,67,145],[65,151,65,182],[65,184,65,192],[68,150,69,150],[68,183,69,183],[68,184,69,192],[64,151,64,182],[64,184,64,192],[64,1,65,1],[64,2,65,21],[64,22,65,22],[63,47,63,51],[63,52,63,56],[65,27,65,31],[65,32,65,36],[65,37,65,41],[65,42,65,46],[65,47,65,51],[65,52,65,56],[62,228,62,232],[62,150,62,160],[62,161,62,168],[62,193,62,197],[62,198,62,202],[62,1,63,1],[62,2,63,21],[62,22,63,22],[62,78,62,83],[62,84,62,89],[63,27,63,31],[63,32,63,36],[63,37,63,41],[63,42,63,46],[63,57,63,61],[63,62,63,66],[63,67,63,71],[62,203,62,207],[62,208,62,212],[62,213,62,217],[62,218,62,222],[62,223,62,227],[62,188,62,192],[63,228,63,232],[61,228,61,232],[61,150,61,160],[61,161,61,168],[61,193,61,197],[61,198,61,202],[61,188,61,192],[60,188,60,192],[60,203,60,207],[60,208,60,212],[60,228,60,232],[60,218,60,222],[60,223,60,227],[61,218,61,222],[61,223,61,227],[60,169,60,183],[61,169,61,183],[61,57,61,61],[61,62,61,66],[61,67,61,71],[61,78,61,83],[61,84,61,89],[60,213,60,217],[61,27,61,31],[61,32,61,36],[61,37,61,41],[61,42,61,46],[61,47,61,51],[61,52,61,56],[60,193,60,197],[60,198,60,202],[61,203,61,207],[61,208,61,212],[61,213,61,217],[60,91,60,139],[60,140,60,149],[61,91,61,139],[61,140,61,149],[60,1,61,1],[60,2,61,21],[60,22,61,22],[60,78,60,83],[60,84,60,89],[60,150,60,160],[60,161,60,168],[59,193,59,197],[59,84,59,89],[59,150,59,160],[59,161,59,168],[59,47,59,51],[59,52,59,56],[58,1,59,1],[58,2,59,21],[58,22,59,22],[58,78,58,83],[58,84,58,89],[59,27,59,31],[59,32,59,36],[59,37,59,41],[59,42,59,46],[59,57,59,61],[59,62,59,66],[59,78,59,83],[57,161,57,168],[57,193,57,197],[57,140,57,149],[57,91,57,139],[58,91,58,139],[58,140,58,149],[59,91,59,139],[59,140,59,149],[58,150,58,160],[58,161,58,168],[58,193,58,197],[57,169,57,183],[58,169,58,183],[59,169,59,183],[58,213,58,217],[58,218,58,222],[56,169,56,183],[56,184,56,232],[51,2,52,15],[51,19,52,70],[51,79,52,93],[57,57,57,61],[57,62,57,66],[57,67,57,71],[57,78,57,83],[57,84,57,89],[57,27,57,31],[57,32,57,36],[57,37,57,41],[57,42,57,46],[57,47,57,51],[57,52,57,56],[57,203,57,207],[57,208,57,212],[57,213,57,217],[57,218,57,222],[56,1,57,1],[56,2,57,21],[56,22,57,22],[56,37,56,41],[56,52,56,56],[56,67,56,71],[56,78,56,89],[56,150,56,160],[57,150,57,160],[56,140,56,149],[56,90,56,139],[37,7,37,20],[47,173,49,184],[47,185,49,196],[47,197,49,208],[47,209,49,220],[48,2,50,15],[48,19,50,70],[47,221,49,232],[46,174,46,183],[46,186,46,195],[46,198,46,207],[46,210,46,219],[46,222,46,231],[47,79,48,93],[47,96,48,164],[49,79,50,93],[49,96,50,154],[49,155,50,164],[44,79,44,93],[44,95,44,104],[44,105,44,114],[44,115,44,124],[44,125,44,134],[44,135,44,144],[44,145,44,154],[45,3,46,52],[45,79,46,93],[45,96,46,163],[42,176,42,232],[22,228,22,232],[22,198,22,202],[22,203,22,207],[22,208,22,212],[22,213,22,217],[22,218,22,222],[22,223,22,227],[28,57,28,61],[28,62,28,66],[28,67,28,71],[22,78,22,149],[26,57,26,61],[40,208,40,232],[26,62,26,66],[26,67,26,71],[29,48,29,58],[30,48,30,58],[26,47,26,51],[26,52,26,56],[35,35,36,69],[37,23,37,70],[22,52,22,56],[28,27,28,31],[27,1,28,1],[24,57,24,61],[24,62,24,66],[24,67,24,71],[25,1,26,1],[25,2,26,21],[25,22,26,22],[26,27,26,31],[26,32,26,36],[26,37,26,41],[23,1,24,1],[23,2,24,21],[23,22,24,22],[28,32,28,36],[28,37,28,41],[28,42,28,46],[28,47,28,51],[28,52,28,56],[26,42,26,46],[24,27,24,31],[27,2,28,21],[27,22,28,22],[21,223,21,227],[21,188,21,192],[21,203,21,207],[21,78,21,83],[21,84,21,89],[22,27,22,31],[22,32,22,36],[22,37,22,41],[22,42,22,46],[22,57,22,61],[22,62,22,66],[22,67,22,71],[21,218,21,222],[22,193,22,197],[22,188,22,192],[21,169,21,183],[21,193,21,197],[21,198,21,202],[19,161,19,168],[24,32,24,36],[24,37,24,41],[24,42,24,46],[24,47,24,51],[24,52,24,56],[19,1,20,1],[19,2,20,21],[19,22,20,22],[19,78,19,83],[19,84,19,89],[19,150,19,160],[20,27,20,31],[20,32,20,36],[20,37,20,41],[20,42,20,46],[20,47,20,51],[20,52,20,56],[20,84,20,89],[20,78,20,83],[21,1,22,1],[21,2,22,21],[21,22,22,22],[22,47,22,51],[17,223,17,227],[17,2,18,21],[17,22,18,22],[17,78,17,83],[17,84,17,89],[18,27,18,31],[18,32,18,36],[18,37,18,41],[18,42,18,46],[18,57,18,61],[18,62,18,66],[18,67,18,71],[18,78,18,83],[17,203,17,207],[17,208,17,212],[17,213,17,217],[18,198,18,202],[18,203,18,207],[18,208,18,212],[18,193,18,197],[18,84,18,89],[18,150,18,160],[18,161,18,168],[18,169,18,183],[18,223,18,227],[18,188,18,192],[17,188,17,192],[15,1,16,1],[15,2,16,21],[15,22,16,22],[15,37,15,41],[15,52,15,56],[15,67,15,71],[15,78,15,89],[15,150,15,160],[15,161,15,168],[15,184,15,232],[16,37,16,41],[16,42,16,46],[16,47,16,51],[16,218,16,222],[16,223,16,227],[16,57,16,61],[16,62,16,66],[16,67,16,71],[16,228,16,232],[16,150,16,160],[17,1,18,1],[10,96,11,110],[10,111,11,115],[10,116,11,130],[10,131,11,135],[10,136,11,150],[10,2,11,15],[10,19,11,70],[10,79,11,93],[7,2,9,15],[7,19,9,70],[1,176,1,232],[2,78,2,99],[2,174,2,189],[2,191,2,196],[2,197,2,202],[2,203,2,208],[2,209,2,214],[3,135,3,144],[3,145,3,154],[3,155,3,164],[2,215,2,220],[2,221,2,226],[2,227,2,232],[16,198,16,202],[16,188,16,192],[16,52,16,56],[16,203,16,207],[16,208,16,212],[16,213,16,217],[16,78,16,83],[16,84,16,89],[21,208,21,212],[21,213,21,217],[19,198,19,202],[19,193,19,197],[19,188,19,192],[18,213,18,217],[20,57,20,61],[20,62,20,66],[20,67,20,71],[20,150,20,160],[18,52,18,56],[16,161,16,168],[16,169,16,183],[16,193,16,197],[20,161,20,168],[20,169,20,183],[17,228,17,232],[17,150,17,160],[17,161,17,168],[17,198,17,202],[17,218,17,222],[68,198,69,202],[68,203,69,207],[68,208,69,212],[68,213,69,217],[68,218,69,222],[68,223,69,227],[68,228,69,232],[43,197,43,202],[18,228,18,232],[18,218,18,222],[21,228,21,232],[43,203,43,208],[43,209,43,214],[43,215,43,220],[43,221,43,226],[43,227,43,232],[19,228,19,232],[19,208,19,212],[19,203,19,207],[20,228,20,232],[19,213,19,217],[19,218,19,222],[19,223,19,227],[20,203,20,207],[20,208,20,212],[20,213,20,217],[20,218,20,222],[20,223,20,227],[59,198,59,202],[59,203,59,207],[59,208,59,212],[59,213,59,217],[59,218,59,222],[43,191,43,196],[51,221,53,232],[59,223,59,227],[59,228,59,232],[50,186,50,195],[50,198,50,207],[50,210,50,219],[50,222,50,231],[57,188,57,192],[58,228,58,232],[58,223,58,227],[59,188,59,192],[58,188,58,192],[51,209,53,220],[57,223,57,227],[57,228,57,232],[57,198,57,202],[58,203,58,207],[58,208,58,212],[68,193,69,197],[3,79,3,93],[3,95,3,104],[3,105,3,114],[3,115,3,124],[3,125,3,134],[17,169,17,183],[17,193,17,197],[43,78,43,99],[43,174,43,189],[50,174,50,183],[51,96,52,110],[51,111,52,115],[51,116,52,130],[51,131,52,135],[51,136,52,150],[56,161,56,168],[4,79,5,93],[15,169,15,183],[6,79,7,93],[6,96,7,164],[19,169,19,183],[21,150,21,160],[21,161,21,168],[12,79,13,93],[12,96,13,163],[53,79,54,93],[53,96,54,163],[44,155,44,164],[1,98,1,141],[42,98,42,141],[38,23,39,71],[40,23,40,71],[4,3,5,52],[4,96,5,163],[3,2,3,60],[3,62,3,70],[18,47,18,51],[16,27,16,31],[16,32,16,36],[33,1,40,5],[33,7,34,26],[33,27,34,41],[33,43,34,61],[33,62,34,71],[35,7,36,20],[8,79,9,93],[8,96,9,154],[79,78,81,115],[79,116,81,153],[79,23,80,71],[81,23,81,71],[74,1,81,5],[74,7,75,26],[74,27,75,41],[74,43,75,61],[74,62,75,71],[76,7,77,20],[72,60,72,71],[70,59,70,71],[71,59,71,71],[29,2,29,7],[30,2,30,7],[31,2,31,7],[29,8,29,30],[30,8,30,30],[31,8,31,30],[29,31,29,45],[30,31,30,45],[31,31,31,45],[70,2,70,7],[70,8,70,30],[70,31,70,45],[31,60,31,71],[31,53,31,59],[29,59,29,71],[30,59,30,71],[38,7,40,20],[44,2,44,60],[44,62,44,70],[35,23,36,33],[59,67,59,71],[71,2,71,7],[71,8,71,30],[71,31,71,45],[72,2,72,7],[72,8,72,30],[72,31,72,45],[72,53,72,59],[70,48,70,58],[71,48,71,58]]}
[]
[null,"御　社　控",null,null,null,null,null,null,null,null,null,null,null,null,null,null,null,null,null,null,null,null,null,null,null,null,null,null,null,null,null,null,null,null,null,null,null,null,null,null,null,null,null,null,null,null,null,null,null,null,null,null,null,null,null,null,null,null,null,null,null,null,null,null,null,null,null,null,null,null,null,null,null,null,null,null,null,null,null,null,null,null,null,null,null,null,null,null,null,null,null,null,null,null,null,null,null,null,"請　　　求　　　書",null,null,null,null,null,null,null,null,null,null,null,null,null,null,null,null,null,null,null,null,null,null,null,null,null,null,null,null,null,null,null,null,null,null,null,null,null,null,null,null,null,null,null,null,null,null,null,null,null,null,null,null,null,null,null,null,null,null,null,null,null,null,null,null,null,null,null,null,null,null,null,null,null,null,null,null,null,{"$f":"IF(入力!M8=\"\",\"　　　　　年　　　月　　　日\",入力!M8)","v":"　　　　　年　　　月　　　日"}]
[null,null,null,null,null,null,null,null,null,null,null,null,null,null,null,null,null,null,null,null,null,null,null,null,null,null,null,null,null,null,null,null,null,null,null,null,null,null,null,null,null,null,null,null,null,null,null,null,null,null,null,null,null,null,null,null,null,null,null,null,null,null,null,null,null,null,null,null,null,null,null,null,null,null,null,null,null,null,"請求者",null,null,null,null,null,null,null,null,null,null,null,null,null,null,null,null,null,null,null,null,null,null,null,null,null,null,null,null,null,null,null,null,null,null,null,null,null,null,null,null,null,null,null,null,null,null,null,null,null,null,null,null,null,null,null,null,null,null,null,null,null,null,null,null,null,null,null,null,null,null,null,null,null,null,null,null,null,null,null,null,null,null,null,null,null,null,null,null,null,null,null,null,null,null,null,"工事番号",null,null,null,null,null,null,null,null,null,null,null,null,null,null,null,null,{"$f":"入力!BZ21","v":""},null,null,null,null,null,{"$f":"入力!CA21","v":""},null,null,null,null,null,{"$f":"入力!CB21","v":""},null,null,null,null,null,{"$f":"入力!CC21","v":""},null,null,null,null,null,{"$f":"入力!CD21","v":""},null,null,null,null,null,{"$f":"入力!CE21","v":""},null,null,null,null,null,{"$f":"入力!CF21","v":""}]
[null,null,{"$f":"IF(入力!M18=\"\",\"\",入力!M18)","v":"宮内建設　株式会社"},null,null,null,null,null,null,null,null,null,null,null,null,null,null,null,null,null,null,null,null,null,null,null,null,null,null,null,null,null,null,null,null,null,null,null,null,null,null,null,null,null,null,null,null,null,null,null,null,null,null,null,null,null,null,null,null,null,null,null,"御中",null,null,null,null,null,null,null,null,null,null,null,null,null,null,null,null,"取引コード",null,null,null,null,null,null,null,null,null,null,null,null,null,null,null,{"$f":"入力!BZ11","v":""},null,null,null,null,null,null,null,null,null,{"$f":"入力!CA11","v":""},null,null,null,null,null,null,null,null,null,{"$f":"入力!CB11","v":""},null,null,null,null,null,null,null,null,null,{"$f":"入力!CC11","v":""},null,null,null,null,null,null,null,null,null,{"$f":"入力!CD11","v":""},null,null,null,null,null,null,null,null,null,{"$f":"入力!CE11","v":""},null,null,null,null,null,null,null,null,null,{"$f":"入力!CF11","v":""}]
[null,null,null,"　下記のとおり請求致します｡",null,null,null,null,null,null,null,null,null,null,null,null,null,null,null,null,null,null,null,null,null,null,null,null,null,null,null,null,null,null,null,null,null,null,null,null,null,null,null,null,null,null,null,null,null,null,null,null,null,null,null,null,null,null,null,null,null,null,null,null,null,null,null,null,null,null,null,null,null,null,null,null,null,null,null,"住所",null,null,null,null,null,null,null,null,null,null,null,null,null,null,null,null,{"$f":"IF(入力!M12=\"\",\"\",入力!M12)","v":""}]
[]
[null,null,null,null,null,null,null,null,null,null,null,null,null,null,null,null,null,null,null,null,null,null,null,null,null,null,null,null,null,null,null,null,null,null,null,null,null,null,null,null,null,null,null,null,null,null,null,null,null,null,null,null,null,null,null,null,null,null,null,null,null,null,null,null,null,null,null,null,null,null,null,null,null,null,null,null,null,null,null,"会社名",null,null,null,null,null,null,null,null,null,null,null,null,null,null,null,null,{"$f":"IF(入力!M13=\"\",\"\",入力!M13)","v":""}]
[null,null,"工 事 名",null,null,null,null,null,null,null,null,null,null,null,null,null,null,null,null,{"$f":"IF(入力!M22=\"\",\"\",入力!M22)","v":""}]
[null,null,null,null,null,null,null,null,null,null,null,null,null,null,null,null,null,null,null,null,null,null,null,null,null,null,null,null,null,null,null,null,null,null,null,null,null,null,null,null,null,null,null,null,null,null,null,null,null,null,null,null,null,null,null,null,null,null,null,null,null,null,null,null,null,null,null,null,null,null,null,null,null,null,null,null,null,null,null,"代表者",null,null,null,null,null,null,null,null,null,null,null,null,null,null,null,null,{"$f":"IF(入力!M14=\"\",\"\",入力!M14)","v":""}]
[]
[null,null,null,null,null,null,null,null,null,null,null,null,null,null,null,null,null,null,null,null,null,null,null,null,null,null,null,null,null,null,null,null,null,null,null,null,null,null,null,null,null,null,null,null,null,null,null,null,null,null,null,null,null,null,null,null,null,null,null,null,null,null,null,null,null,null,null,null,null,null,null,null,null,null,null,null,null,null,null,"電話",null,null,null,null,null,null,null,null,null,null,null,null,null,null,null,null,{"$f":"IF(入力!M15=\"\",\"\",入力!M15)","v":""},null,null,null,null,null,null,null,null,null,null,null,null,null,null,"-",null,null,null,null,{"$f":"IF(入力!R15=\"\",\"\",入力!R15)","v":""},null,null,null,null,null,null,null,null,null,null,null,null,null,null,"-",null,null,null,null,{"$f":"IF(入力!W15=\"\",\"\",入力!W15)","v":""}]
[]
[null,null,null,null,null,null,null,null,null,null,null,null,null,null,null,null,null,null,null,null,null,null,null,null,null,null,null,null,null,null,null,null,null,null,null,null,null,null,null,null,null,null,null,null,null,null,null,null,null,null,null,null,null,null,null,null,null,null,null,null,null,null,null,null,null,null,null,null,null,null,null,null,null,null,null,null,null,null,null,"登録番号",null,null,null,null,null,null,null,null,null,null,null,null,null,null,null,null,{"$f":"IF(入力!M16=\"\",\"\",入力!M16)","v":""}]
[]
[]
[null,null,"契約金額　　　　　　　　（税抜）",null,null,null,null,null,null,null,null,null,null,null,null,null,null,null,null,null,null,null,null,null,null,null,null,null,null,null,null,null,null,null,null,null,null,"百万",null,null,null,null,null,null,null,null,null,null,null,null,null,null,"千",null,null,null,null,null,null,null,null,null,null,null,null,null,null,"円",null,null,null,null,null,null,null,null,null,null,"月　　日",null,null,null,null,null,null,null,null,null,null,null,"名　　　称　　　・　　　摘　　　要",null,null,null,null,null,null,null,null,null,null,null,null,null,null,null,null,null,null,null,null,null,null,null,null,null,null,null,null,null,null,null,null,null,null,null,null,null,null,null,null,null,null,null,null,null,null,null,null,null,"税率",null,null,null,null,null,null,null,null,null,"数量",null,null,null,null,null,null,null,null,null,null,"単位",null,null,null,null,null,null,null,"単価",null,null,null,null,null,null,null,null,null,null,null,null,null,null,"金額"]
[null,null,null,null,null,null,null,null,null,null,null,null,null,null,null,null,null,null,null,null,null,null,null,null,null,null,null,{"$f":"入力!BX23","v":""},null,null,null,null,{"$f":"入力!BY23","v":""},null,null,null,null,{"$f":"入力!BZ23","v":""},null,null,null,null,{"$f":"入力!CA23","v":""},null,null,null,null,{"$f":"入力!CB23","v":""},null,null,null,null,{"$f":"入力!CC23","v":""},null,null,null,null,{"$f":"入力!CD23","v":""},null,null,null,null,{"$f":"入力!CE23","v":""},null,null,null,null,{"$f":"入力!CF23","v":""},null,null,null,null,null,null,null,null,null,null,{"$f":"IF(入力!M31=\"\",\"\",入力!M31)","v":""},null,null,null,null,null,{"$f":"IF(入力!O31=\"\",\"\",入力!O31)","v":""},null,null,null,null,null,null,{"$f":"IF(入力!Q31=\"\",\"\",入力!Q31)","v":""},null,null,null,null,null,null,null,null,null,null,null,null,null,null,null,null,null,null,null,null,null,null,null,null,null,null,null,null,null,null,null,null,null,null,null,null,null,null,null,null,null,null,null,null,null,null,null,null,{"$f":"IF(入力!AP31=\"\",\"\",入力!AP31)","v":""},null,null,null,null,null,null,null,null,null,{"$f":"IF(入力!AB31=\"\",\"\",入力!AB31)","v":""},null,null,null,null,null,null,null,null,null,null,{"$f":"IF(入力!AD31=\"\",\"\",入力!AD31)","v":""},null,null,null,null,null,null,null,{"$f":"IF(入力!AF31=\"\",\"\",入力!AF31)","v":""},null,null,null,null,null,null,null,null,null,null,null,null,null,null,null,null,null,null,{"$f":"IF(入力!BX31=\"\",\"\",入力!BX31)","v":""},null,null,null,null,{"$f":"IF(入力!BY31=\"\",\"\",入力!BY31)","v":""},null,null,null,null,{"$f":"IF(入力!BZ31=\"\",\"\",入力!BZ31)","v":""},null,null,null,null,{"$f":"IF(入力!CA31=\"\",\"\",入力!CA31)","v":""},null,null,null,null,{"$f":"IF(入力!CB31=\"\",\"\",入力!CB31)","v":""},null,null,null,null,{"$f":"IF(入力!CC31=\"\",\"\",入力!CC31)","v":""},null,null,null,null,{"$f":"IF(入力!CD31=\"\",\"\",入力!CD31)","v":""},null,null,null,null,{"$f":"IF(入力!CE31=\"\",\"\",入力!CE31)","v":""},null,null,null,null,{"$f":"IF(入力!CF31=\"\",\"\",入力!CF31)","v":""}]
[null,null,"前月迄請求額\n（税抜）",null,null,null,null,null,null,null,null,null,null,null,null,null,null,null,null,null,null,null,null,null,null,null,null,null,null,null,null,null,null,null,null,null,null,null,null,null,null,null,null,null,null,null,null,null,null,null,null,null,null,null,null,null,null,null,null,null,null,null,null,null,null,null,null,null,null,null,null,null,null,null,null,null,null,null,{"$f":"IF(入力!M32=\"\",\"\",入力!M32)","v":""},null,null,null,null,null,{"$f":"IF(入力!O32=\"\",\"\",入力!O32)","v":""},null,null,null,null,null,null,{"$f":"IF(入力!Q32=\"\",\"\",入力!Q32)","v":""},null,null,null,null,null,null,null,null,null,null,null,null,null,null,null,null,null,null,null,null,null,null,null,null,null,null,null,null,null,null,null,null,null,null,null,null,null,null,null,null,null,null,null,null,null,null,null,null,{"$f":"IF(入力!AP32=\"\",\"\",入力!AP32)","v":""},null,null,null,null,null,null,null,null,null,{"$f":"IF(入力!AB32=\"\",\"\",入力!AB32)","v":""},null,null,null,null,null,null,null,null,null,null,{"$f":"IF(入力!AD32=\"\",\"\",入力!AD32)","v":""},null,null,null,null,null,null,null,{"$f":"IF(入力!AF32=\"\",\"\",入力!AF32)","v":""},null,null,null,null,null,null,null,null,null,null,null,null,null,null,null,null,null,null,{"$f":"IF(入力!BX32=\"\",\"\",入力!BX32)","v":""},null,null,null,null,{"$f":"IF(入力!BY32=\"\",\"\",入力!BY32)","v":""},null,null,null,null,{"$f":"IF(入力!BZ32=\"\",\"\",入力!BZ32)","v":""},null,null,null,null,{"$f":"IF(入力!CA32=\"\",\"\",入力!CA32)","v":""},null,null,null,null,{"$f":"IF(入力!CB32=\"\",\"\",入力!CB32)","v":""},null,null,null,null,{"$f":"IF(入力!CC32=\"\",\"\",入力!CC32)","v":""},null,null,null,null,{"$f":"IF(入力!CD32=\"\",\"\",入力!CD32)","v":""},null,null,null,null,{"$f":"IF(入力!CE32=\"\",\"\",入力!CE32)","v":""},null,null,null,null,{"$f":"IF(入力!CF32=\"\",\"\",入力!CF32)","v":""}]
[null,null,null,null,null,null,null,null,null,null,null,null,null,null,null,null,null,null,null,null,null,null,null,null,null,null,null,{"$f":"入力!BX24","v":""},null,null,null,null,{"$f":"入力!BY24","v":""},null,null,null,null,{"$f":"入力!BZ24","v":""},null,null,null,null,{"$f":"入力!CA24","v":""},null,null,null,null,{"$f":"入力!CB24","v":""},null,null,null,null,{"$f":"入力!CC24","v":""},null,null,null,null,{"$f":"入力!CD24","v":""},null,null,null,null,{"$f":"入力!CE24","v":""},null,null,null,null,{"$f":"入力!CF24","v":""},null,null,null,null,null,null,null,null,null,null,{"$f":"IF(入力!M33=\"\",\"\",入力!M33)","v":""},null,null,null,null,null,{"$f":"IF(入力!O33=\"\",\"\",入力!O33)","v":""},null,null,null,null,null,null,{"$f":"IF(入力!Q33=\"\",\"\",入力!Q33)","v":""},null,null,null,null,null,null,null,null,null,null,null,null,null,null,null,null,null,null,null,null,null,null,null,null,null,null,null,null,null,null,null,null,null,null,null,null,null,null,null,null,null,null,null,null,null,null,null,null,{"$f":"IF(入力!AP33=\"\",\"\",入力!AP33)","v":""},null,null,null,null,null,null,null,null,null,{"$f":"IF(入力!AB33=\"\",\"\",入力!AB33)","v":""},null,null,null,null,null,null,null,null,null,null,{"$f":"IF(入力!AD33=\"\",\"\",入力!AD33)","v":""},null,null,null,null,null,null,null,{"$f":"IF(入力!AF33=\"\",\"\",入力!AF33)","v":""},null,null,null,null,null,null,null,null,null,null,null,null,null,null,null,null,null,null,{"$f":"IF(入力!BX33=\"\",\"\",入力!BX33)","v":""},null,null,null,null,{"$f":"IF(入力!BY33=\"\",\"\",入力!BY33)","v":""},null,null,null,null,{"$f":"IF(入力!BZ33=\"\",\"\",入力!BZ33)","v":""},null,null,null,null,{"$f":"IF(入力!CA33=\"\",\"\",入力!CA33)","v":""},null,null,null,null,{"$f":"IF(入力!CB33=\"\",\"\",入力!CB33)","v":""},null,null,null,null,{"$f":"IF(入力!CC33=\"\",\"\",入力!CC33)","v":""},null,null,null,null,{"$f":"IF(入力!CD33=\"\",\"\",入力!CD33)","v":""},null,null,null,null,{"$f":"IF(入力!CE33=\"\",\"\",入力!CE33)","v":""},null,null,null,null,{"$f":"IF(入力!CF33=\"\",\"\",入力!CF33)","v":""}]
[null,null,"今回出来高　　　　　　　　　（税抜）",null,null,null,null,null,null,null,null,null,null,null,null,null,null,null,null,null,null,null,null,null,null,null,null,null,null,null,null,null,null,null,null,null,null,null,null,null,null,null,null,null,null,null,null,null,null,null,null,null,null,null,null,null,null,null,null,null,null,null,null,null,null,null,null,null,null,null,null,null,null,null,null,null,null,null,{"$f":"IF(入力!M34=\"\",\"\",入力!M34)","v":""},null,null,null,null,null,{"$f":"IF(入力!O34=\"\",\"\",入力!O34)","v":""},null,null,null,null,null,null,{"$f":"IF(入力!Q34=\"\",\"\",入力!Q34)","v":""},null,null,null,null,null,null,null,null,null,null,null,null,null,null,null,null,null,null,null,null,null,null,null,null,null,null,null,null,null,null,null,null,null,null,null,null,null,null,null,null,null,null,null,null,null,null,null,null,{"$f":"IF(入力!AP34=\"\",\"\",入力!AP34)","v":""},null,null,null,null,null,null,null,null,null,{"$f":"IF(入力!AB34=\"\",\"\",入力!AB34)","v":""},null,null,null,null,null,null,null,null,null,null,{"$f":"IF(入力!AD34=\"\",\"\",入力!AD34)","v":""},null,null,null,null,null,null,null,{"$f":"IF(入力!AF34=\"\",\"\",入力!AF34)","v":""},null,null,null,null,null,null,null,null,null,null,null,null,null,null,null,null,null,null,{"$f":"IF(入力!BX34=\"\",\"\",入力!BX34)","v":""},null,null,null,null,{"$f":"IF(入力!BY34=\"\",\"\",入力!BY34)","v":""},null,null,null,null,{"$f":"IF(入力!BZ34=\"\",\"\",入力!BZ34)","v":""},null,null,null,null,{"$f":"IF(入力!CA34=\"\",\"\",入力!CA34)","v":""},null,null,null,null,{"$f":"IF(入力!CB34=\"\",\"\",入力!CB34)","v":""},null,null,null,null,{"$f":"IF(入力!CC34=\"\",\"\",入力!CC34)","v":""},null,null,null,null,{"$f":"IF(入力!CD34=\"\",\"\",入力!CD34)","v":""},null,null,null,null,{"$f":"IF(入力!CE34=\"\",\"\",入力!CE34)","v":""},null,null,null,null,{"$f":"IF(入力!CF34=\"\",\"\",入力!CF34)","v":""}]
[null,null,null,null,null,null,null,null,null,null,null,null,null,null,null,null,null,null,null,null,null,null,null,null,null,null,null,{"$f":"入力!BX25","v":""},null,null,null,null,{"$f":"入力!BY25","v":""},null,null,null,null,{"$f":"入力!BZ25","v":""},null,null,null,null,{"$f":"入力!CA25","v":""},null,null,null,null,{"$f":"入力!CB25","v":""},null,null,null,null,{"$f":"入力!CC25","v":""},null,null,null,null,{"$f":"入力!CD25","v":""},null,null,null,null,{"$f":"入力!CE25","v":""},null,null,null,null,{"$f":"入力!CF25","v":""},null,null,null,null,null,null,null,null,null,null,{"$f":"IF(入力!M35=\"\",\"\",入力!M35)","v":""},null,null,null,null,null,{"$f":"IF(入力!O35=\"\",\"\",入力!O35)","v":""},null,null,null,null,null,null,{"$f":"IF(入力!Q35=\"\",\"\",入力!Q35)","v":""},null,null,null,null,null,null,null,null,null,null,null,null,null,null,null,null,null,null,null,null,null,null,null,null,null,null,null,null,null,null,null,null,null,null,null,null,null,null,null,null,null,null,null,null,null,null,null,null,{"$f":"IF(入力!AP35=\"\",\"\",入力!AP35)","v":""},null,null,null,null,null,null,null,null,null,{"$f":"IF(入力!AB35=\"\",\"\",入力!AB35)","v":""},null,null,null,null,null,null,null,null,null,null,{"$f":"IF(入力!AD35=\"\",\"\",入力!AD35)","v":""},null,null,null,null,null,null,null,{"$f":"IF(入力!AF35=\"\",\"\",入力!AF35)","v":""},null,null,null,null,null,null,null,null,null,null,null,null,null,null,null,null,null,null,{"$f":"IF(入力!BX35=\"\",\"\",入力!BX35)","v":""},null,null,null,null,{"$f":"IF(入力!BY35=\"\",\"\",入力!BY35)","v":""},null,null,null,null,{"$f":"IF(入力!BZ35=\"\",\"\",入力!BZ35)","v":""},null,null,null,null,{"$f":"IF(入力!CA35=\"\",\"\",入力!CA35)","v":""},null,null,null,null,{"$f":"IF(入力!CB35=\"\",\"\",入力!CB35)","v":""},null,null,null,null,{"$f":"IF(入力!CC35=\"\",\"\",入力!CC35)","v":""},null,null,null,null,{"$f":"IF(入力!CD35=\"\",\"\",入力!CD35)","v":""},null,null,null,null,{"$f":"IF(入力!CE35=\"\",\"\",入力!CE35)","v":""},null,null,null,null,{"$f":"IF(入力!CF35=\"\",\"\",入力!CF35)","v":""}]
[null,null,"累計出来高　　　　　（税抜）",null,null,null,null,null,null,null,null,null,null,null,null,null,null,null,null,null,null,null,null,null,null,null,null,null,null,null,null,null,null,null,null,null,null,null,null,null,null,null,null,null,null,null,null,null,null,null,null,null,null,null,null,null,null,null,null,null,null,null,null,null,null,null,null,null,null,null,null,null,null,null,null,null,null,null,{"$f":"IF(入力!M36=\"\",\"\",入力!M36)","v":""},null,null,null,null,null,{"$f":"IF(入力!O36=\"\",\"\",入力!O36)","v":""},null,null,null,null,null,null,{"$f":"IF(入力!Q36=\"\",\"\",入力!Q36)","v":""},null,null,null,null,null,null,null,null,null,null,null,null,null,null,null,null,null,null,null,null,null,null,null,null,null,null,null,null,null,null,null,null,null,null,null,null,null,null,null,null,null,null,null,null,null,null,null,null,{"$f":"IF(入力!AP36=\"\",\"\",入力!AP36)","v":""},null,null,null,null,null,null,null,null,null,{"$f":"IF(入力!AB36=\"\",\"\",入力!AB36)","v":""},null,null,null,null,null,null,null,null,null,null,{"$f":"IF(入力!AD36=\"\",\"\",入力!AD36)","v":""},null,null,null,null,null,null,null,{"$f":"IF(入力!AF36=\"\",\"\",入力!AF36)","v":""},null,null,null,null,null,null,null,null,null,null,null,null,null,null,null,null,null,null,{"$f":"IF(入力!BX36=\"\",\"\",入力!BX36)","v":""},null,null,null,null,{"$f":"IF(入力!BY36=\"\",\"\",入力!BY36)","v":""},null,null,null,null,{"$f":"IF(入力!BZ36=\"\",\"\",入力!BZ36)","v":""},null,null,null,null,{"$f":"IF(入力!CA36=\"\",\"\",入力!CA36)","v":""},null,null,null,null,{"$f":"IF(入力!CB36=\"\",\"\",入力!CB36)","v":""},null,null,null,null,{"$f":"IF(入力!CC36=\"\",\"\",入力!CC36)","v":""},null,null,null,null,{"$f":"IF(入力!CD36=\"\",\"\",入力!CD36)","v":""},null,null,null,null,{"$f":"IF(入力!CE36=\"\",\"\",入力!CE36)","v":""},null,null,null,null,{"$f":"IF(入力!CF36=\"\",\"\",入力!CF36)","v":""}]
[null,null,null,null,null,null,null,null,null,null,null,null,null,null,null,null,null,null,null,null,null,null,null,null,null,null,null,{"$f":"入力!BX26","v":""},null,null,null,null,{"$f":"入力!BY26","v":""},null,null,null,null,{"$f":"入力!BZ26","v":""},null,null,null,null,{"$f":"入力!CA26","v":""},null,null,null,null,{"$f":"入力!CB26","v":""},null,null,null,null,{"$f":"入力!CC26","v":""},null,null,null,null,{"$f":"入力!CD26","v":""},null,null,null,null,{"$f":"入力!CE26","v":""},null,null,null,null,{"$f":"入力!CF26","v":""},null,null,null,null,null,null,null,null,null,null,"計　 （ 消 費 税 抜 ）",null,null,null,null,null,null,null,null,null,null,null,null,null,null,null,null,null,null,null,null,null,null,null,null,null,null,null,null,null,null,null,null,null,null,null,null,null,null,null,null,null,null,null,null,null,null,null,null,null,null,null,null,null,null,null,null,null,null,null,null,null,null,null,null,null,null,null,null,null,null,null,null,null,null,null,null,null,null,null,null,null,null,null,null,null,null,null,null,null,null,null,null,null,null,null,null,null,null,null,null,null,null,null,null,null,null,null,null,null,{"$f":"IF(入力!BX37=\"\",\"\",入力!BX37)","v":""},null,null,null,null,{"$f":"IF(入力!BY37=\"\",\"\",入力!BY37)","v":""},null,null,null,null,{"$f":"IF(入力!BZ37=\"\",\"\",入力!BZ37)","v":""},null,null,null,null,{"$f":"IF(入力!CA37=\"\",\"\",入力!CA37)","v":""},null,null,null,null,{"$f":"IF(入力!CB37=\"\",\"\",入力!CB37)","v":""},null,null,null,null,{"$f":"IF(入力!CC37=\"\",\"\",入力!CC37)","v":""},null,null,null,null,{"$f":"IF(入力!CD37=\"\",\"\",入力!CD37)","v":""},null,null,null,null,{"$f":"IF(入力!CE37=\"\",\"\",入力!CE37)","v":""},null,null,null,null,{"$f":"IF(入力!CE37=\"\",\"\",入力!CF37)","v":""}]
[null,null,"残高金額　　　　　　　　　　（税抜）"]
[null,null,null,null,null,null,null,null,null,null,null,null,null,null,null,null,null,null,null,null,null,null,null,null,null,null,null,{"$f":"入力!BX27","v":""},null,null,null,null,{"$f":"入力!BY27","v":""},null,null,null,null,{"$f":"入力!BZ27","v":""},null,null,null,null,{"$f":"入力!CA27","v":""},null,null,null,null,{"$f":"入力!CB27","v":""},null,null,null,null,{"$f":"入力!CC27","v":""},null,null,null,null,{"$f":"入力!CD27","v":""},null,null,null,null,{"$f":"入力!CE27","v":""},null,null,null,null,{"$f":"入力!CF27","v":""}]
[null,null,"消費税"]
[null,null,null,null,null,null,null,null,null,null,null,null,null,null,null,null,null,null,null,null,null,null,null,null,null,null,null,{"$f":"入力!BX28","v":""},null,null,null,null,{"$f":"入力!BY28","v":""},null,null,null,null,{"$f":"入力!BZ28","v":""},null,null,null,null,{"$f":"入力!CA28","v":""},null,null,null,null,{"$f":"入力!CB28","v":""},null,null,null,null,{"$f":"入力!CC28","v":""},null,null,null,null,{"$f":"入力!CD28","v":""},null,null,null,null,{"$f":"入力!CE28","v":""},null,null,null,null,{"$f":"入力!CF28","v":""}]
[null,null,"今回請求額　　　　　　　（税込）"]
[null,null,null,null,null,null,null,null,null,null,null,null,null,null,null,null,null,null,null,null,null,null,null,null,null,null,null,{"$f":"入力!BX29","v":""},null,null,null,null,{"$f":"入力!BY29","v":""},null,null,null,null,{"$f":"入力!BZ29","v":""},null,null,null,null,{"$f":"入力!CA29","v":""},null,null,null,null,{"$f":"入力!CB29","v":""},null,null,null,null,{"$f":"入力!CC29","v":""},null,null,null,null,{"$f":"入力!CD29","v":""},null,null,null,null,{"$f":"入力!CE29","v":""},null,null,null,null,{"$f":"入力!CF29","v":""}]
[null,null,{"$f":"IF(入力!BB2=\"\",\"\",入力!BB2*100)","v":10},null,null,null,null,null,"％ (標準税率)　対象額",null,null,null,null,null,null,null,null,null,null,null,null,null,null,null,null,null,null,null,null,null,null,{"$f":"IF(入力!AJ37=0,\"\",SUM(入力!BG37:BH37))","v":""},null,null,null,null,null,null,null,null,null,null,null,null,null,null,null,null,"内 消費税",null,null,null,null,null,null,null,null,null,null,{"$f":"IF(入力!AJ37=0,\"\",入力!BH37)","v":""}]
[null,null,{"$f":"IF(入力!BB3=\"\",\"\",入力!BB3*100)","v":8},null,null,null,null,null,"％ (軽減税率)　対象額",null,null,null,null,null,null,null,null,null,null,null,null,null,null,null,null,null,null,null,null,null,null,{"$f":"IF(入力!AJ37=0,\"\",SUM(入力!BI37:BJ37))","v":""},null,null,null,null,null,null,null,null,null,null,null,null,null,null,null,null,"内 消費税",null,null,null,null,null,null,null,null,null,null,{"$f":"IF(入力!AJ37=0,\"\",入力!BJ37)","v":""}]
[null,null,{"$f":"IF(入力!BB4=\"\",\"\",入力!BB4*100)","v":0},null,null,null,null,null,"％ (非 課 税)　 対象額",null,null,null,null,null,null,null,null,null,null,null,null,null,null,null,null,null,null,null,null,null,null,{"$f":"IF(入力!AJ37=0,\"\",SUM(入力!BK37:BL37))","v":""}]
[]
[null,"振込先",null,null,null,null,null,{"$f":"IF(入力!M43=\"\",\"\",入力!M43)","v":""},null,null,null,null,null,null,null,null,null,null,null,null,null,null,null,null,null,null,null,{"$f":"IF(入力!U43=\"\",\"\",入力!U43)","v":""},null,null,null,null,null,null,null,null,null,null,null,null,null,null,null,{"$f":"IF(入力!M44=\"\",\"\",入力!M44)","v":""},null,null,null,null,null,null,null,null,null,null,null,null,null,null,null,null,null,null,{"$f":"IF(入力!U44=\"\",\"\",入力!U44)","v":""}]
[]
[null,null,null,null,null,null,null,"口座番号",null,null,null,null,null,null,null,null,null,null,null,null,null,null,null,{"$f":"IF(入力!M45=\"\",\"\",入力!M45)","v":""},null,null,null,null,null,null,null,null,null,null,null,{"$f":"IF(入力!M46=\"\",\"\",入力!M46)","v":""}]
[]
[null,null,null,null,null,null,null,"フ リ ガ ナ",null,null,null,null,null,null,null,null,null,null,null,null,null,null,null,{"$f":"IF(入力!M47=\"\",\"\",入力!M47)","v":""}]
[null,null,null,null,null,null,null,"口座名義",null,null,null,null,null,null,null,null,null,null,null,null,null,null,null,{"$f":"IF(入力!M48=\"\",\"\",入力!M48)","v":""}]
[]
[null,null,null,null,null,null,null,null,null,null,null,null,null,null,null,null,null,null,null,null,null,null,null,{"$f":"IF(入力!M49=\"\",\"\",入力!M49)","v":""},null,null,null,null,null,null,null,null,null,null,null,null,null,null,null,null,null,null,null,null,null,null,null,null,null,null,null,null,null,null,null,null,null,null,null,null,null,null,null,null,null,null,null,null,null,null,null,null,null,null,null,null,null,null,null,null,null,null,null,null,null,null,null,null,null,null,null,null,null,null,null,null,null,null,null,null,null,null,null,null,null,null,null,null,null,null,null,null,null,null,null,null,null,null,null,null,null,null,null,null,null,null,null,null,null,null,null,null,null,null,null,null,null,null,null,null,null,null,null,null,null,null,null,null,null,null,null,null,null,null,null,null,null,null,null,null,null,null,null,null,null,null,null,null,null,null,null,null,null,null,null,null,null,null,null,null,null,null,null,null,null,null,null,null,null,null,null,null,null,null,null,null,null,null,null,null,null,null,null,null,null,null,null,null,"20230601 Vor. 2"]
[]
[null,"送　付　用",null,null,null,null,null,null,null,null,null,null,null,null,null,null,null,null,null,null,null,null,null,null,null,null,null,null,null,null,null,null,null,null,null,null,null,null,null,null,null,null,null,null,null,null,null,null,null,null,null,null,null,null,null,null,null,null,null,null,null,null,null,null,null,null,null,null,null,null,null,null,null,null,null,null,null,null,null,null,null,null,null,null,null,null,null,null,null,null,null,null,null,null,null,null,null,null,"請　　　求　　　書",null,null,null,null,null,null,null,null,null,null,null,null,null,null,null,null,null,null,null,null,null,null,null,null,null,null,null,null,null,null,null,null,null,null,null,null,null,null,null,null,null,null,null,null,null,null,null,null,null,null,null,null,null,null,null,null,null,null,null,null,null,null,null,null,null,null,null,null,null,null,null,null,null,null,null,null,null,{"$f":"FU2","v":"　　　　　年　　　月　　　日"}]
[null,null,null,null,null,null,null,null,null,null,null,null,null,null,null,null,null,null,null,null,null,null,null,null,null,null,null,null,null,null,null,null,null,null,null,null,null,null,null,null,null,null,null,null,null,null,null,null,null,null,null,null,null,null,null,null,null,null,null,null,null,null,null,null,null,null,null,null,null,null,null,null,null,null,null,null,null,null,"請求者",null,null,null,null,null,null,null,null,null,null,null,null,null,null,null,null,null,null,null,null,null,null,null,null,null,null,null,null,null,null,null,null,null,null,null,null,null,null,null,null,null,null,null,null,null,null,null,null,null,null,null,null,null,null,null,null,null,null,null,null,null,null,null,null,null,null,null,null,null,null,null,null,null,null,null,null,null,null,null,null,null,null,null,null,null,null,null,null,null,null,null,null,null,null,null,"工事番号",null,null,null,null,null,null,null,null,null,null,null,null,null,null,null,null,{"$f":"GJ3","v":""},null,null,null,null,null,{"$f":"GP3","v":""},null,null,null,null,null,{"$f":"GV3","v":""},null,null,null,null,null,{"$f":"HB3","v":""},null,null,null,null,null,{"$f":"HH3","v":""},null,null,null,null,null,{"$f":"HN3","v":""},null,null,null,null,null,{"$f":"HT3","v":""}]
[null,null,{"$f":"IF(C4=\"\",\"\",C4)","v":"宮内建設　株式会社"},null,null,null,null,null,null,null,null,null,null,null,null,null,null,null,null,null,null,null,null,null,null,null,null,null,null,null,null,null,null,null,null,null,null,null,null,null,null,null,null,null,null,null,null,null,null,null,null,null,null,null,null,null,null,null,null,null,null,null,"御中",null,null,null,null,null,null,null,null,null,null,null,null,null,null,null,null,"取引コード",null,null,null,null,null,null,null,null,null,null,null,null,null,null,null,{"$f":"CR4","v":""},null,null,null,null,null,null,null,null,null,{"$f":"DB4","v":""},null,null,null,null,null,null,null,null,null,{"$f":"DL4","v":""},null,null,null,null,null,null,null,null,null,{"$f":"DV4","v":""},null,null,null,null,null,null,null,null,null,{"$f":"EF4","v":""},null,null,null,null,null,null,null,null,null,{"$f":"EP4","v":""},null,null,null,null,null,null,null,null,null,{"$f":"EZ4","v":""}]
[null,null,null,"　下記のとおり請求致します｡",null,null,null,null,null,null,null,null,null,null,null,null,null,null,null,null,null,null,null,null,null,null,null,null,null,null,null,null,null,null,null,null,null,null,null,null,null,null,null,null,null,null,null,null,null,null,null,null,null,null,null,null,null,null,null,null,null,null,null,null,null,null,null,null,null,null,null,null,null,null,null,null,null,null,null,"住所",null,null,null,null,null,null,null,null,null,null,null,null,null,null,null,null,{"$f":"IF(CS5=\"\",\"\",CS5)","v":""}]
[null,null,null,null,null,null,null,null,null,null,null,null,null,null,null,null,null,null,null,null,null,null,null,null,null,null,null,null,null,null,null,null,null,null,null,null,null,null,null,null,null,null,null,null,null,null,null,null,null,null,null,null,null,null,null,null,null,null,null,null,null,null,null,null,null,null,null,null,null,null,null,null,null,null,null,null,null,null,null,null,null,null,null,null,null,null,null,null,null,null,null,null,null,null,null,null,null,null,null,null,null,null,null,null,null,null,null,null,null,null,null,null,null,null,null,null,null,null,null,null,null,null,null,null,null,null,null,null,null,null,null,null,null,null,null,null,null,null,null,null,null,null,null,null,null,null,null,null,null,null,null,null,null,null,null,null,null,null,null,null,null,null,null,null,null,null,null,null,null,null,null,null,null,null,"社　　　長",null,null,null,null,null,null,null,null,null,null,null,"統括部長",null,null,null,null,null,null,null,null,null,null,null,"部　　　長",null,null,null,null,null,null,null,null,null,null,null,"次　　　長",null,null,null,null,null,null,null,null,null,null,null,"担当者"]
[null,null,null,null,null,null,null,null,null,null,null,null,null,null,null,null,null,null,null,null,null,null,null,null,null,null,null,null,null,null,null,null,null,null,null,null,null,null,null,null,null,null,null,null,null,null,null,null,null,null,null,null,null,null,null,null,null,null,null,null,null,null,null,null,null,null,null,null,null,null,null,null,null,null,null,null,null,null,null,"会社名",null,null,null,null,null,null,null,null,null,null,null,null,null,null,null,null,{"$f":"IF(CS7=\"\",\"\",CS7)","v":""}]
[null,null,"工 事 名",null,null,null,null,null,null,null,null,null,null,null,null,null,null,null,null,{"$f":"IF(T8=\"\",\"\",T8)","v":""}]
[null,null,null,null,null,null,null,null,null,null,null,null,null,null,null,null,null,null,null,null,null,null,null,null,null,null,null,null,null,null,null,null,null,null,null,null,null,null,null,null,null,null,null,null,null,null,null,null,null,null,null,null,null,null,null,null,null,null,null,null,null,null,null,null,null,null,null,null,null,null,null,null,null,null,null,null,null,null,null,"代表者",null,null,null,null,null,null,null,null,null,null,null,null,null,null,null,null,{"$f":"IF(CS9=\"\",\"\",CS9)","v":""},null,null,null,null,null,null,null,null,null,null,null,null,null,null,null,null,null,null,null,null,null,null,null,null,null,null,null,null,null,null,null,null,null,null,null,null,null,null,null,null,null,null,null,null,null,null,null,null,null,null,null,null,null,null,null,null,null,null,"㊞"]
[null,null,null,null,null,null,null,null,null,null,null,null,null,null,null,null,null,null,null,null,null,null,null,null,null,null,null,null,null,null,null,null,null,null,null,null,null,null,null,null,null,null,null,null,null,null,null,null,null,null,null,null,null,null,null,null,null,null,null,null,null,null,null,null,null,null,null,null,null,null,null,null,null,null,null,null,null,null,null,null,null,null,null,null,null,null,null,null,null,null,null,null,null,null,null,null,null,null,null,null,null,null,null,null,null,null,null,null,null,null,null,null,null,null,null,null,null,null,null,null,null,null,null,null,null,null,null,null,null,null,null,null,null,null,null,null,null,null,null,null,null,null,null,null,null,null,null,null,null,null,null,null,null,null,null,null,null,null,null,null,null,null,null,null,null,null,null,null,null,null,null,null,null,null,"総務部長",null,null,null,null,null,null,null,null,null,null,null,"経　　　理",null,null,null,null,null,null,null,null,null,null,null,"受　　　付",null,null,null,null,null,null,null,null,null,null,null,null,null,null,null,null,null,null,null,null,null,null,null,"工事部"]
[null,null,null,null,null,null,null,null,null,null,null,null,null,null,null,null,null,null,null,null,null,null,null,null,null,null,null,null,null,null,null,null,null,null,null,null,null,null,null,null,null,null,null,null,null,null,null,null,null,null,null,null,null,null,null,null,null,null,null,null,null,null,null,null,null,null,null,null,null,null,null,null,null,null,null,null,null,null,null,"電話",null,null,null,null,null,null,null,null,null,null,null,null,null,null,null,null,{"$f":"IF(CS11=\"\",\"\",CS11)","v":""},null,null,null,null,null,null,null,null,null,null,null,null,null,null,"-",null,null,null,null,{"$f":"IF(DM11=\"\",\"\",DM11)","v":""},null,null,null,null,null,null,null,null,null,null,null,null,null,null,"-",null,null,null,null,{"$f":"IF(EG11=\"\",\"\",EG11)","v":""}]
[]
[null,null,null,null,null,null,null,null,null,null,null,null,null,null,null,null,null,null,null,null,null,null,null,null,null,null,null,null,null,null,null,null,null,null,null,null,null,null,null,null,null,null,null,null,null,null,null,null,null,null,null,null,null,null,null,null,null,null,null,null,null,null,null,null,null,null,null,null,null,null,null,null,null,null,null,null,null,null,null,"登録番号",null,null,null,null,null,null,null,null,null,null,null,null,null,null,null,null,{"$f":"IF(CS13=\"\",\"\",CS13)","v":""}]
[]
[]
[null,null,"契約金額　　　　　　　　（税抜）",null,null,null,null,null,null,null,null,null,null,null,null,null,null,null,null,null,null,null,null,null,null,null,null,null,null,null,null,null,null,null,null,null,null,"百万",null,null,null,null,null,null,null,null,null,null,null,null,null,null,"千",null,null,null,null,null,null,null,null,null,null,null,null,null,null,"円",null,null,null,null,null,null,null,null,null,null,"月　　日",null,null,null,null,null,null,null,null,null,null,null,"名　　　称　　　・　　　摘　　　要",null,null,null,null,null,null,null,null,null,null,null,null,null,null,null,null,null,null,null,null,null,null,null,null,null,null,null,null,null,null,null,null,null,null,null,null,null,null,null,null,null,null,null,null,null,null,null,null,null,"税率",null,null,null,null,null,null,null,null,null,"数量",null,null,null,null,null,null,null,null,null,null,"単位",null,null,null,null,null,null,null,"単価",null,null,null,null,null,null,null,null,null,null,null,null,null,null,"金額"]
[null,null,null,null,null,null,null,null,null,null,null,null,null,null,null,null,null,null,null,null,null,null,null,null,null,null,null,{"$f":"IF(AB17=\"\",\"\",AB17)","v":""},null,null,null,null,{"$f":"IF(AG17=\"\",\"\",AG17)","v":""},null,null,null,null,{"$f":"IF(AL17=\"\",\"\",AL17)","v":""},null,null,null,null,{"$f":"IF(AQ17=\"\",\"\",AQ17)","v":""},null,null,null,null,{"$f":"IF(AV17=\"\",\"\",AV17)","v":""},null,null,null,null,{"$f":"IF(BA17=\"\",\"\",BA17)","v":""},null,null,null,null,{"$f":"IF(BF17=\"\",\"\",BF17)","v":""},null,null,null,null,{"$f":"IF(BK17=\"\",\"\",BK17)","v":""},null,null,null,null,{"$f":"IF(BP17=\"\",\"\",BP17)","v":""},null,null,null,null,null,null,null,null,null,null,{"$f":"IF(CA17=\"\",\"\",CA17)","v":""},null,null,null,null,null,{"$f":"IF(CG17=\"\",\"\",CG17)","v":""},null,null,null,null,null,null,{"$f":"IF(CN17=\"\",\"\",CN17)","v":""},null,null,null,null,null,null,null,null,null,null,null,null,null,null,null,null,null,null,null,null,null,null,null,null,null,null,null,null,null,null,null,null,null,null,null,null,null,null,null,null,null,null,null,null,null,null,null,null,{"$f":"IF(EK17=\"\",\"\",EK17)","v":""},null,null,null,null,null,null,null,null,null,{"$f":"IF(EU17=\"\",\"\",EU17)","v":""},null,null,null,null,null,null,null,null,null,null,{"$f":"IF(FF17=\"\",\"\",FF17)","v":""},null,null,null,null,null,null,null,{"$f":"IF(FN17=\"\",\"\",FN17)","v":""},null,null,null,null,null,null,null,null,null,null,null,null,null,null,null,null,null,null,{"$f":"GG17","v":""},null,null,null,null,{"$f":"GL17","v":""},null,null,null,null,{"$f":"GQ17","v":""},null,null,null,null,{"$f":"GV17","v":""},null,null,null,null,{"$f":"HA17","v":""},null,null,null,null,{"$f":"HF17","v":""},null,null,null,null,{"$f":"HK17","v":""},null,null,null,null,{"$f":"HP17","v":""},null,null,null,null,{"$f":"HU17","v":""}]
[null,null,"前月迄請求額\n（税抜）",null,null,null,null,null,null,null,null,null,null,null,null,null,null,null,null,null,null,null,null,null,null,null,null,null,null,null,null,null,null,null,null,null,null,null,null,null,null,null,null,null,null,null,null,null,null,null,null,null,null,null,null,null,null,null,null,null,null,null,null,null,null,null,null,null,null,null,null,null,null,null,null,null,null,null,{"$f":"IF(CA18=\"\",\"\",CA18)","v":""},null,null,null,null,null,{"$f":"IF(CG18=\"\",\"\",CG18)","v":""},null,null,null,null,null,null,{"$f":"IF(CN18=\"\",\"\",CN18)","v":""},null,null,null,null,null,null,null,null,null,null,null,null,null,null,null,null,null,null,null,null,null,null,null,null,null,null,null,null,null,null,null,null,null,null,null,null,null,null,null,null,null,null,null,null,null,null,null,null,{"$f":"IF(EK18=\"\",\"\",EK18)","v":""},null,null,null,null,null,null,null,null,null,{"$f":"IF(EU18=\"\",\"\",EU18)","v":""},null,null,null,null,null,null,null,null,null,null,{"$f":"IF(FF18=\"\",\"\",FF18)","v":""},null,null,null,null,null,null,null,{"$f":"IF(FN18=\"\",\"\",FN18)","v":""},null,null,null,null,null,null,null,null,null,null,null,null,null,null,null,null,null,null,{"$f":"GG18","v":""},null,null,null,null,{"$f":"GL18","v":""},null,null,null,null,{"$f":"GQ18","v":""},null,null,null,null,{"$f":"GV18","v":""},null,null,null,null,{"$f":"HA18","v":""},null,null,null,null,{"$f":"HF18","v":""},null,null,null,null,{"$f":"HK18","v":""},null,null,null,null,{"$f":"HP18","v":""},null,null,null,null,{"$f":"HU18","v":""}]
[null,null,null,null,null,null,null,null,null,null,null,null,null,null,null,null,null,null,null,null,null,null,null,null,null,null,null,{"$f":"IF(AB19=\"\",\"\",AB19)","v":""},null,null,null,null,"",null,null,null,null,"",null,null,null,null,"",null,null,null,null,"",null,null,null,null,"",null,null,null,null,"",null,null,null,null,"",null,null,null,null,"",null,null,null,null,null,null,null,null,null,null,"",null,null,null,null,null,"",null,null,null,null,null,null,"",null,null,null,null,null,null,null,null,null,null,null,null,null,null,null,null,null,null,null,null,null,null,null,null,null,null,null,null,null,null,null,null,null,null,null,null,null,null,null,null,null,null,null,null,null,null,null,null,"",null,null,null,null,null,null,null,null,null,"",null,null,null,null,null,null,null,null,null,null,"",null,null,null,null,null,null,null,"",null,null,null,null,null,null,null,null,null,null,null,null,null,null,null,null,null,null,"",null,null,null,null,{"$f":"GL19","v":""},null,null,null,null,{"$f":"GQ19","v":""},null,null,null,null,{"$f":"GV19","v":""},null,null,null,null,{"$f":"HA19","v":""},null,null,null,null,{"$f":"HF19","v":""},null,null,null,null,{"$f":"HK19","v":""},null,null,null,null,{"$f":"HP19","v":""},null,null,null,null,{"$f":"HU19","v":""}]
[null,null,"今回出来高　　　　　　　　　（税抜）",null,null,null,null,null,null,null,null,null,null,null,null,null,null,null,null,null,null,null,null,null,null,null,null,null,null,null,null,null,null,null,null,null,null,null,null,null,null,null,null,null,null,null,null,null,null,null,null,null,null,null,null,null,null,null,null,null,null,null,null,null,null,null,null,null,null,null,null,null,null,null,null,null,null,null,"",null,null,null,null,null,"",null,null,null,null,null,null,"",null,null,null,null,null,null,null,null,null,null,null,null,null,null,null,null,null,null,null,null,null,null,null,null,null,null,null,null,null,null,null,null,null,null,null,null,null,null,null,null,null,null,null,null,null,null,null,null,"",null,null,null,null,null,null,null,null,null,"",null,null,null,null,null,null,null,null,null,null,"",null,null,null,null,null,null,null,"",null,null,null,null,null,null,null,null,null,null,null,null,null,null,null,null,null,null,"",null,null,null,null,{"$f":"GL20","v":""},null,null,null,null,{"$f":"GQ20","v":""},null,null,null,null,{"$f":"GV20","v":""},null,null,null,null,{"$f":"HA20","v":""},null,null,null,null,{"$f":"HF20","v":""},null,null,null,null,{"$f":"HK20","v":""},null,null,null,null,{"$f":"HP20","v":""},null,null,null,null,{"$f":"HU20","v":""}]
[null,null,null,null,null,null,null,null,null,null,null,null,null,null,null,null,null,null,null,null,null,null,null,null,null,null,null,{"$f":"IF(AB21=\"\",\"\",AB21)","v":""},null,null,null,null,"",null,null,null,null,"",null,null,null,null,"",null,null,null,null,"",null,null,null,null,"",null,null,null,null,"",null,null,null,null,"",null,null,null,null,"",null,null,null,null,null,null,null,null,null,null,"",null,null,null,null,null,"",null,null,null,null,null,null,"",null,null,null,null,null,null,null,null,null,null,null,null,null,null,null,null,null,null,null,null,null,null,null,null,null,null,null,null,null,null,null,null,null,null,null,null,null,null,null,null,null,null,null,null,null,null,null,null,"",null,null,null,null,null,null,null,null,null,"",null,null,null,null,null,null,null,null,null,null,"",null,null,null,null,null,null,null,"",null,null,null,null,null,null,null,null,null,null,null,null,null,null,null,null,null,null,"",null,null,null,null,{"$f":"GL21","v":""},null,null,null,null,{"$f":"GQ21","v":""},null,null,null,null,{"$f":"GV21","v":""},null,null,null,null,{"$f":"HA21","v":""},null,null,null,null,{"$f":"HF21","v":""},null,null,null,null,{"$f":"HK21","v":""},null,null,null,null,{"$f":"HP21","v":""},null,null,null,null,{"$f":"HU21","v":""}]
[null,null,"累計出来高　　　　　（税抜）",null,null,null,null,null,null,null,null,null,null,null,null,null,null,null,null,null,null,null,null,null,null,null,null,null,null,null,null,null,null,null,null,null,null,null,null,null,null,null,null,null,null,null,null,null,null,null,null,null,null,null,null,null,null,null,null,null,null,null,null,null,null,null,null,null,null,null,null,null,null,null,null,null,null,null,{"$f":"IF(CA22=\"\",\"\",CA22)","v":""},null,null,null,null,null,{"$f":"IF(CG22=\"\",\"\",CG22)","v":""},null,null,null,null,null,null,"",null,null,null,null,null,null,null,null,null,null,null,null,null,null,null,null,null,null,null,null,null,null,null,null,null,null,null,null,null,null,null,null,null,null,null,null,null,null,null,null,null,null,null,null,null,null,null,null,"",null,null,null,null,null,null,null,null,null,{"$f":"IF(EU22=\"\",\"\",EU22)","v":""},null,null,null,null,null,null,null,null,null,null,{"$f":"IF(FF22=\"\",\"\",FF22)","v":""},null,null,null,null,null,null,null,"",null,null,null,null,null,null,null,null,null,null,null,null,null,null,null,null,null,null,{"$f":"GG22","v":""},null,null,null,null,{"$f":"GL22","v":""},null,null,null,null,{"$f":"GQ22","v":""},null,null,null,null,{"$f":"GV22","v":""},null,null,null,null,{"$f":"HA22","v":""},null,null,null,null,{"$f":"HF22","v":""},null,null,null,null,{"$f":"HK22","v":""},null,null,null,null,{"$f":"HP22","v":""},null,null,null,null,{"$f":"HU22","v":""}]
[null,null,null,null,null,null,null,null,null,null,null,null,null,null,null,null,null,null,null,null,null,null,null,null,null,null,null,{"$f":"IF(AB23=\"\",\"\",AB23)","v":""},null,null,null,null,"",null,null,null,null,"",null,null,null,null,"",null,null,null,null,"",null,null,null,null,"",null,null,null,null,"",null,null,null,null,"",null,null,null,null,"",null,null,null,null,null,null,null,null,null,null,"計　 （ 消 費 税 抜 ）",null,null,null,null,null,null,null,null,null,null,null,null,null,null,null,null,null,null,null,null,null,null,null,null,null,null,null,null,null,null,null,null,null,null,null,null,null,null,null,null,null,null,null,null,null,null,null,null,null,null,null,null,null,null,null,null,null,null,null,null,null,null,null,null,null,null,null,null,null,null,null,null,null,null,null,null,null,null,null,null,null,null,null,null,null,null,null,null,null,null,null,null,null,null,null,null,null,null,null,null,null,null,null,null,null,null,null,null,null,{"$f":"GG23","v":""},null,null,null,null,{"$f":"GL23","v":""},null,null,null,null,{"$f":"GQ23","v":""},null,null,null,null,{"$f":"GV23","v":""},null,null,null,null,{"$f":"HA23","v":""},null,null,null,null,{"$f":"HF23","v":""},null,null,null,null,{"$f":"HK23","v":""},null,null,null,null,{"$f":"HP23","v":""},null,null,null,null,{"$f":"HU23","v":""}]
[null,null,"残高金額　　　　　　　　　　（税抜）",null,null,null,null,null,null,null,null,null,null,null,null,null,null,null,null,null,null,null,null,null,null,null,null,null,null,null,null,null,null,null,null,null,null,null,null,null,null,null,null,null,null,null,null,null,null,null,null,null,null,null,null,null,null,null,null,null,null,null,null,null,null,null,null,null,null,null,null,null,null,null,null,null,null,null,null,null,null,null,null,null,null,null,null,null,null,null,null,null,null,null,null,null,null,null,null,null,null,null,null,null,null,null,null,null,null,null,null,null,null,null,null,null,null,null,null,null,null,null,null,null,null,null,null,null,null,null,null,null,null,null,null,null,null,null,null,null,null,null,null,null,null,null,null,null,null,null,null,"▲値引"]
[null,null,null,null,null,null,null,null,null,null,null,null,null,null,null,null,null,null,null,null,null,null,null,null,null,null,null,{"$f":"IF(AB25=\"\",\"\",AB25)","v":""},null,null,null,null,"",null,null,null,null,"",null,null,null,null,"",null,null,null,null,"",null,null,null,null,"",null,null,null,null,"",null,null,null,null,"",null,null,null,null,"",null,null,null,null,null,null,null,null,null,null,null,null,null,null,null,null,null,null,null,null,null,null,null,null,null,null,null,null,null,null,null,null,null,null,null,null,null,null,null,null,null,null,null,null,null,null,null,null,null,null,null,null,null,null,null,null,null,null,null,null,null,null,null,null,null,null,null,null,null,null,null,null,null,null,null,null,null,null,null,null,null,null,null,"×訂正"]
[null,null,"消費税",null,null,null,null,null,null,null,null,null,null,null,null,null,null,null,null,null,null,null,null,null,null,null,null,null,null,null,null,null,null,null,null,null,null,null,null,null,null,null,null,null,null,null,null,null,null,null,null,null,null,null,null,null,null,null,null,null,null,null,null,null,null,null,null,null,null,null,null,null,null,null,null,null,null,null,null,"支払条件",null,null,null,null,null,null,null,null,null,null,null,null,null,null,"翌２０日・翌末日・翌々２０日",null,null,null,null,null,null,null,null,null,null,null,null,null,null,null,null,null,null,null,null,null,null,null,null,null,null,null,null,null,null,null,null,null,null,null,null,null,null,null,null,null,null,null,null,null,null,null,null,null,null,null,null,null,null,null,null,"計"]
[null,null,null,null,null,null,null,null,null,null,null,null,null,null,null,null,null,null,null,null,null,null,null,null,null,null,null,{"$f":"IF(AB27=\"\",\"\",AB27)","v":""},null,null,null,null,"",null,null,null,null,"",null,null,null,null,"",null,null,null,null,"",null,null,null,null,"",null,null,null,null,"",null,null,null,null,"",null,null,null,null,"",null,null,null,null,null,null,null,null,null,null,null,null,null,null,null,null,null,null,null,null,null,null,null,null,null,null,null,null,null,null,null,null,null,null,null,null,null,null,null,null,null,null,null,null,null,null,null,null,null,null,null,null,null,null,null,null,null,null,null,null,null,null,null,null,null,null,null,null,null,null,null,null,null,null,null,null,null,null,null,null,null,null,null,"消費税"]
[null,null,"今回請求額　　　　　　　（税込）",null,null,null,null,null,null,null,null,null,null,null,null,null,null,null,null,null,null,null,null,null,null,null,null,null,null,null,null,null,null,null,null,null,null,null,null,null,null,null,null,null,null,null,null,null,null,null,null,null,null,null,null,null,null,null,null,null,null,null,null,null,null,null,null,null,null,null,null,null,null,null,null,null,null,null,null,null,null,null,null,null,null,null,null,null,null,null,null,null,null,null,"現金",null,null,null,null,null,null,null,null,null,null,null,null,null,null,null,null,null,null,null,"％",null,null,null,null,"手形",null,null,null,null,null,null,null,null,null,null,null,null,null,null,null,null,null,null,null,null,"％",null,null,null,null,null,null,null,null,null,null,"税込合計　　　　　　　　　　　　　　（支払決定額）"]
[null,null,null,null,null,null,null,null,null,null,null,null,null,null,null,null,null,null,null,null,null,null,null,null,null,null,null,{"$f":"IF(AB29=\"\",\"\",AB29)","v":""},null,null,null,null,"",null,null,null,null,"",null,null,null,null,"",null,null,null,null,"",null,null,null,null,"",null,null,null,null,"",null,null,null,null,"",null,null,null,null,{"$f":"IF(入力!M25=\"\",\"\",BP29)","v":""},null,null,null,null,null,null,null,null,null,null,null,null,null,null,null,null,null,null,null,null,null,null,null,null,null,null,"その他"]
[null,null,{"$f":"IF(C30=\"\",\"\",C30)","v":10},null,null,null,null,null,"％ (標準税率)　対象額",null,null,null,null,null,null,null,null,null,null,null,null,null,null,null,null,null,null,null,null,null,null,{"$f":"IF(AF30=\"\",\"\",AF30)","v":""},null,null,null,null,null,null,null,null,null,null,null,null,null,null,null,null,"内 消費税",null,null,null,null,null,null,null,null,null,null,{"$f":"IF(BH30=\"\",\"\",BH30)","v":""}]
[null,null,{"$f":"IF(C31=\"\",\"\",C31)","v":8},null,null,null,null,null,"％ (軽減税率)　対象額",null,null,null,null,null,null,null,null,null,null,null,null,null,null,null,null,null,null,null,null,null,null,{"$f":"IF(AF31=\"\",\"\",AF31)","v":""},null,null,null,null,null,null,null,null,null,null,null,null,null,null,null,null,"内 消費税",null,null,null,null,null,null,null,null,null,null,{"$f":"IF(BH31=\"\",\"\",BH31)","v":""}]
[null,null,0,null,null,null,null,null,"％ (非 課 税)　 対象額",null,null,null,null,null,null,null,null,null,null,null,null,null,null,null,null,null,null,null,null,null,null,"",null,null,null,null,null,null,null,null,null,null,null,null,null,null,null,null,null,null,null,null,null,null,null,null,null,null,null,null,null,null,null,null,null,null,null,null,null,null,null,null,null,null,null,null,null,null,"弊社使用欄"]
[]
[null,"振込先",null,null,null,null,null,{"$f":"IF(H34=\"\",\"\",H34)","v":""},null,null,null,null,null,null,null,null,null,null,null,null,null,null,null,null,null,null,null,{"$f":"IF(AB34=\"\",\"\",AB34)","v":""},null,null,null,null,null,null,null,null,null,null,null,null,null,null,null,{"$f":"IF(AR34=\"\",\"\",AR34)","v":""},null,null,null,null,null,null,null,null,null,null,null,null,null,null,null,null,null,null,{"$f":"IF(BK34=\"\",\"\",BK34)","v":""}]
[]
[null,null,null,null,null,null,null,"口座番号",null,null,null,null,null,null,null,null,null,null,null,null,null,null,null,{"$f":"IF(X36=\"\",\"\",X36)","v":""},null,null,null,null,null,null,null,null,null,null,null,{"$f":"IF(AJ36=\"\",\"\",AJ36)","v":""}]
[]
[null,null,null,null,null,null,null,"フ リ ガ ナ",null,null,null,null,null,null,null,null,null,null,null,null,null,null,null,{"$f":"IF(X38=\"\",\"\",X38)","v":""},null,null,null,null,null,null,null,null,null,null,null,null,null,null,null,null,null,null,null,null,null,null,null,null,null,null,null,null,null,null,null,null,null,null,null,null,null,null,null,null,null,null,null,null,null,null,null,null,null,null,null,null,null,null,null,"科目コード（科目名）",null,null,null,null,null,null,null,null,null,null,null,null,null,null,null,null,null,null,null,null,null,null,null,null,null,null,null,null,null,null,null,null,null,null,null,null,null,"受付日",null,null,null,null,null,null,null,null,null,null,null,null,null,null,null,null,null,null,null,null,null,null,null,null,null,null,null,null,null,null,null,null,null,null,null,null,null,null,null,null,"支払予定日"]
[null,null,null,null,null,null,null,"口座名義",null,null,null,null,null,null,null,null,null,null,null,null,null,null,null,{"$f":"IF(X39=\"\",\"\",X39)","v":""}]
[]
[null,null,null,null,null,null,null,null,null,null,null,null,null,null,null,null,null,null,null,null,null,null,null,{"$f":"IF(X41=\"\",\"\",X41)","v":""},null,null,null,null,null,null,null,null,null,null,null,null,null,null,null,null,null,null,null,null,null,null,null,null,null,null,null,null,null,null,null,null,null,null,null,null,null,null,null,null,null,null,null,null,null,null,null,null,null,null,null,null,null,null,null,null,null,null,null,null,null,null,null,null,null,null,null,null,null,null,null,null,null,null,null,null,null,null,null,null,null,null,null,null,null,null,null,null,null,null,null,null,null,null,null,null,null,null,null,null,null,null,null,null,null,null,null,null,null,null,null,null,null,null,null,null,null,null,null,null,null,null,null,null,null,null,null,null,null,null,null,null,null,null,null,null,null,null,null,null,null,null,null,null,null,null,null,null,null,null,null,null,null,null,null,null,null,null,null,null,null,null,null,null,null,null,null,null,null,null,null,null,null,null,null,null,null,null,null,null,null,null,null,null,{"$f":"HA41","v":"20230601 Vor. 2"}]

{"sheet":"工事番号一覧","index":2,"n_rows":18,"n_cols":4,"rows_kept":18,"cut":false,"hidden":true,"merged":[]}
[]
[]
[null,"工事番号","工事名","工事略称"]
[null,"29112","別所線口径600mm排水管布設工事（その2）","別所線水道JV"]
[null,"29113","港北処理区篠原地区下水道工事（その24）","篠原下水"]
[null,"29118","栄処理区大面川第二雨水幹線下水道整備工事（その3）","大面川下水JV"]
[null,"29119","高速横浜環状北西線（北八朔地区）街路整備工事（その8）","H29横環北八朔"]
[null,"30011","平成30年度高架橋ＲＣ柱補強工事","H30新横浜耐震"]
[null,"30012","営業部小規模工事（Ｈ30年度）","営業部小規模H30"]
[null,"30013","旧子安小学校解体工事（1期）","子安小解体JV"]
[null,"30015","友伸㈱・出向（大面川下水JV）","友伸出向（大面川下水JV）"]
[null,"30016","工藤建設・吹付出向（小田原）","工藤・吹付（小田原）"]
[null,"30019","Ｈ29多摩川下布田町河道整生工事","多摩川下布田"]
[null,"30020","藤塚幹線口径1350mm送水管布設工事","藤塚水道ＪＶ"]
[null,"30021","長坂谷処分地排水溝修繕工事","長坂谷修繕"]
[null,"30022","日野川改修工事（その2）","日野川改修"]
[null,"30023","南部水再生センター水処理施設（第四期）導水渠築造工事（その2）","南部水再生下水"]
[null,"30024","横浜南部市場関連棟改修工事（電気設備工事）","南部市場（矢口電気）"]